{"text_format":"1","workbook":"xlsx","n_sheets":10,"sheets":["General Info","UHP","Other Indian","Other Foreign","Other Institutions","Other Non-institutions","Taxonomy","TextBlock","ElementMaster","MemberMaster"],"not_rendered":{"charts":0,"images":0,"macros":1,"external_links":0,"defined_names":0,"comments":0,"pivot_tables":0},"unopened":[],"bounds":{"document_bytes":16777216,"sheet_cells":100000,"rows_first":2000,"rows_last":500,"rows_between":2000,"halvings":0,"cell_chars":16384,"cell_head_chars":4096},"cells_cut":0,"cells_raw":0,"read":"whole","date_system":"1900"}

{"sheet":"General Info","index":0,"n_rows":71,"n_cols":20,"rows_kept":71,"cut":false,"hidden":false,"merged":[[8,4,8,7]]}
[]
[]
[]
[]
[]
[]
[]
[null,null,null,null,"Home"]
[null,null,null,null,"General information "]
[null,null,null,null,"BSE scrip code"]
[null,null,null,null,"NSE symbol",null,null,null,null,null,null,null,null,null,null,null,"00"]
[null,null,null,null,"MSEI symbol",null,null,null,null,null,null,null,null,null,null,null,"01","01","2014","Pre Listing"]
[null,null,null,null,"ISIN",null,null,null,null,null,null,null,null,null,null,null,"02","02","2015","Quarterly"]
[null,null,null,null,"Name of the company",null,null,null,null,null,null,null,null,null,null,null,"03","03","2016","Capital Restructuring"]
[null,null,null,null,"Type of Report ",null,null,null,null,null,null,null,null,null,null,null,"04","04","2017"]
[null,null,null,null,"Quarter Ended ",null,null,null,null,null,null,null,null,null,null,null,"05","05",2018]
[null,null,null,null,"Capital Restructuring Date / Listing Date",null,null,null,null,null,null,null,null,null,null,null,"06","06",2019]
[null,null,null,null,"Company remarks [Text Block]",null,null,null,null,null,null,null,null,null,null,null,"07","07",2020]
[null,null,null,null,null,null,null,null,null,null,null,null,null,null,null,null,"08","08",2021]
[null,null,null,null,null,null,null,null,null,null,null,null,null,null,null,null,"09","09",2022]
[null,null,null,null,null,null,null,null,null,null,null,null,null,null,null,null,"10","10",2023]
[null,null,null,null,null,null,null,null,null,null,null,null,null,null,null,null,"11","11",2024]
[null,null,null,null,null,null,null,null,null,null,null,null,null,null,null,null,"12","12",2025]
[null,null,null,null,null,null,null,null,null,null,null,null,null,null,null,null,"13",null,2026]
[null,null,null,null,null,null,null,null,null,null,null,null,null,null,null,null,"14",null,2027]
[null,null,null,null,null,null,null,null,null,null,null,null,null,null,null,null,"15",null,2028]
[null,null,null,null,null,null,null,null,null,null,null,null,null,null,null,null,"16"]
[null,null,null,null,null,null,null,null,null,null,null,null,null,null,null,null,"17"]
[null,null,null,null,null,null,null,null,null,null,null,null,null,null,null,null,"18"]
[null,null,null,null,null,null,null,null,null,null,null,null,null,null,null,null,"19"]
[null,null,null,null,null,null,null,null,null,null,null,null,null,null,null,null,"20"]
[null,null,null,null,null,null,null,null,null,null,null,null,null,null,null,null,"21"]
[null,null,null,null,null,null,null,null,null,null,null,null,null,null,null,null,"22"]
[null,null,null,null,null,null,null,null,null,null,null,null,null,null,null,null,"23"]
[null,null,null,null,null,null,null,null,null,null,null,null,null,null,null,null,"24"]
[null,null,null,null,null,null,null,null,null,null,null,null,null,null,null,null,"25"]
[null,null,null,null,null,null,null,null,null,null,null,null,null,null,null,null,"26"]
[null,null,null,null,null,null,null,null,null,null,null,null,null,null,null,null,"27"]
[null,null,null,null,null,null,null,null,null,null,null,null,null,null,null,null,"28"]
[null,null,null,null,null,null,null,null,null,null,null,null,null,null,null,null,"29"]
[null,null,null,null,null,null,null,null,null,null,null,null,null,null,null,null,"30"]
[null,null,null,null,null,null,null,null,null,null,null,null,null,null,null,null,"31"]
[null,null,null,null,null,null,null,null,null,null,null,null,null,null,null,null,32]
[null,null,null,null,null,null,null,null,null,null,null,null,null,null,null,null,33]
[null,null,null,null,null,null,null,null,null,null,null,null,null,null,null,null,34]
[null,null,null,null,null,null,null,null,null,null,null,null,null,null,null,null,35]
[null,null,null,null,null,null,null,null,null,null,null,null,null,null,null,null,36]
[null,null,null,null,null,null,null,null,null,null,null,null,null,null,null,null,37]
[null,null,null,null,null,null,null,null,null,null,null,null,null,null,null,null,38]
[null,null,null,null,null,null,null,null,null,null,null,null,null,null,null,null,39]
[null,null,null,null,null,null,null,null,null,null,null,null,null,null,null,null,40]
[null,null,null,null,null,null,null,null,null,null,null,null,null,null,null,null,41]
[null,null,null,null,null,null,null,null,null,null,null,null,null,null,null,null,42]
[null,null,null,null,null,null,null,null,null,null,null,null,null,null,null,null,43]
[null,null,null,null,null,null,null,null,null,null,null,null,null,null,null,null,44]
[null,null,null,null,null,null,null,null,null,null,null,null,null,null,null,null,45]
[null,null,null,null,null,null,null,null,null,null,null,null,null,null,null,null,46]
[null,null,null,null,null,null,null,null,null,null,null,null,null,null,null,null,47]
[null,null,null,null,null,null,null,null,null,null,null,null,null,null,null,null,48]
[null,null,null,null,null,null,null,null,null,null,null,null,null,null,null,null,49]
[null,null,null,null,null,null,null,null,null,null,null,null,null,null,null,null,50]
[null,null,null,null,null,null,null,null,null,null,null,null,null,null,null,null,51]
[null,null,null,null,null,null,null,null,null,null,null,null,null,null,null,null,52]
[null,null,null,null,null,null,null,null,null,null,null,null,null,null,null,null,53]
[null,null,null,null,null,null,null,null,null,null,null,null,null,null,null,null,54]
[null,null,null,null,null,null,null,null,null,null,null,null,null,null,null,null,55]
[null,null,null,null,null,null,null,null,null,null,null,null,null,null,null,null,56]
[null,null,null,null,null,null,null,null,null,null,null,null,null,null,null,null,57]
[null,null,null,null,null,null,null,null,null,null,null,null,null,null,null,null,58]
[null,null,null,null,null,null,null,null,null,null,null,null,null,null,null,null,59]
[null,null,null,null,null,null,null,null,null,null,null,null,null,null,null,null,60]

{"sheet":"UHP","index":1,"n_rows":50,"n_cols":23,"rows_kept":50,"cut":false,"hidden":false,"merged":[[11,6,11,9]]}
[]
[null,null,null,null,null,null,null,null,"Number of units held","As a percentage of total outstanding units"]
[]
[]
[]
[]
[]
[]
[]
[]
[]
[null,null,null,null,null,null,"Disclosure of unit holding pattern"]
[null,null,null,null,null,null,"Category","Category of Unit holder","Number of units held","As a percentage of total outstanding units"]
[null,null,null,null,null,null,"A","Sponsor(s) / Investment Manager / Project Manager(s) and their associates/related parties"]
[null,null,null,null,null,null," (1)","Indian"]
[null,null,null,null,null,null," ( a)","Individuals or HUF",null,null,null,"IndividualsOrHUFMember",null,null,"Individuals or HUF [Member]",null,null,null,null,null,null,null,"CategoryOfUnitHoldingPatternDetailsAxis"]
[null,null,null,null,null,null," ( b)","Central government or state government",null,null,null,"CentralGovernmentOrStateGovernmentMember",null,null,"Central government or state government [Member]",null,null,null,null,null,null,null,"CategoryOfUnitHoldingPatternDetailsAxis"]
[null,null,null,null,null,null," ( c)","Financial institutions banks",null,null,null,"FinancialInstitutionsBanksMember",null,null,"Financial institutions banks [Member]",null,null,null,null,null,null,null,"CategoryOfUnitHoldingPatternDetailsAxis"]
[null,null,null,null,null,null," ( d)","Other Indian unit holding",{"$f":"(IF(COUNT('Other Indian'!I64),SUM('Other Indian'!I64),\"\"))","v":""},{"$f":"(IF(COUNT('Other Indian'!J64),SUM('Other Indian'!J64),\"\"))","v":""},null,"OtherIndianMember",null,null,"Other Indian [Member]",null,null,null,"Other Indian",null,null,null,"CategoryOfUnitHoldingPatternDetailsAxis"]
[null,null,null,null,null,null,null,"Total Indian Unit Holding Sub- Total (A) (1)",{"$f":"IF(COUNT(I16:I19),SUM(I16:I19),\"\")","v":""},{"$f":"IF(COUNT(J16:J19),SUM(J16:J19),\"\")","v":""},null,"IndianMember",null,null,"Indian [Member]",null,null,null,null,null,null,null,"CategoryOfUnitHoldingPatternDetailsAxis"]
[null,null,null,null,null,null,"(2)","Foreign"]
[null,null,null,null,null,null,"( a)","Individuals (non-resident Indians or foreign individuals)",null,null,null,"IndividualsNonResidentIndiansOrForeignIndividualsMember",null,null,"Individuals non-resident Indians or foreign individuals [Member]",null,null,null,null,null,null,null,"CategoryOfUnitHoldingPatternDetailsAxis"]
[null,null,null,null,null,null,"( b)","Foreign government",null,null,null,"ForeignGovernmentMember",null,null,"Foreign government [Member]",null,null,null,null,null,null,null,"CategoryOfUnitHoldingPatternDetailsAxis"]
[null,null,null,null,null,null,"( c)","Institution",null,null,null,"ForeignInstitutionsMember",null,null,"Institution [Member]",null,null,null,null,null,null,null,"CategoryOfUnitHoldingPatternDetailsAxis"]
[null,null,null,null,null,null,"( d)","Foreign portfolio investors",null,null,null,"ForeignPortfolioInvestorsMember",null,null,"Foreign portfolio investors [Member]",null,null,null,null,null,null,null,"CategoryOfUnitHoldingPatternDetailsAxis"]
[null,null,null,null,null,null,"( e)","Other foreign unit holding",{"$f":"+IF(COUNT('Other Foreign'!I64),SUM('Other Foreign'!I64),\"\")","v":""},{"$f":"+IF(COUNT('Other Foreign'!J64),SUM('Other Foreign'!J64),\"\")","v":""},null,"OtherForeignMember",null,null,"Other foreign [Member]",null,null,null,null,null,null,null,"CategoryOfUnitHoldingPatternDetailsAxis"]
[null,null,null,null,null,null,null,"Total Foreign unit holding sub - Total (A) (2)",{"$f":"+IF(COUNT(I22:I26),SUM(I22:I26),\"\")","v":""},{"$f":"+IF(COUNT(J22:J26),SUM(J22:J26),\"\")","v":""},null,"ForeignMember",null,null,"Foreign [Member]",null,null,null,null,null,null,null,"CategoryOfUnitHoldingPatternDetailsAxis"]
[null,null,null,null,null,null,null,"Total unit holding of Sponsor & Sponsor Group\n(A) = (A)(1)+(A)(2)",{"$f":"IF(COUNT(I20,I27),SUM(I20,I27),\"\")","v":""},{"$f":"IF(COUNT(J20,J27),SUM(J20,J27),\"\")","v":""},null,"UnitHoldingOfSponsorAndSponsorGroupMember",null,null,"Unit holding of sponsor and sponsor group [Member]",null,null,null,null,null,null,null,"CategoryOfUnitHoldingPatternDetailsAxis"]
[null,null,null,null,null,null,"( B)","Public Holding"]
[null,null,null,null,null,null,"(1)","Institutions"]
[null,null,null,null,null,null,"(a)","Mutual funds",null,null,null,"MutualFundsInstitutionsMember",null,null,"Mutual funds institutions [Member]",null,null,null,null,null,null,null,"CategoryOfUnitHoldingPatternDetailsAxis"]
[null,null,null,null,null,null,"(b)","Financial institutions or banks",null,null,null,"FinancialInstitutionsOrBanksInstitutionsMember",null,null,"Financial institutions or banks institutions [Member]",null,null,null,null,null,null,null,"CategoryOfUnitHoldingPatternDetailsAxis"]
[null,null,null,null,null,null,"(c)","Central government Or state government",null,null,null,"CentralGovernmentOrStateGovernmentsMember",null,null,"Central government Or state government institutions [Member]",null,null,null,null,null,null,null,"CategoryOfUnitHoldingPatternDetailsAxis"]
[null,null,null,null,null,null,"(d)","Venture capital funds",null,null,null,"VentureCapitalFundsInstitutionsMember",null,null,"Venture capital funds institutions [Member]",null,null,null,null,null,null,null,"CategoryOfUnitHoldingPatternDetailsAxis"]
[null,null,null,null,null,null,"(e)","Insurance companies",null,null,null,"InsuranceCompaniesInstitutionsMember",null,null,"Insurance companies institutions [Member]",null,null,null,null,null,null,null,"CategoryOfUnitHoldingPatternDetailsAxis"]
[null,null,null,null,null,null,"(f)","Provident or pension funds",null,null,null,"ProvidentOrPensionFundsInstitutionsMember",null,null,"Provident or pension funds institutions [Member]",null,null,null,null,null,null,null,"CategoryOfUnitHoldingPatternDetailsAxis"]
[null,null,null,null,null,null,"(g)","Foreign portfolio investors",null,null,null,"ForeignPortfolioInvestorsInstitutionsMember",null,null,"Foreign portfolio investors institutions [Member]",null,null,null,null,null,null,null,"CategoryOfUnitHoldingPatternDetailsAxis"]
[null,null,null,null,null,null,"(h)","Foreign venture capital investors",null,null,null,"ForeignVentureCapitalInvestorsInstitutionsMember",null,null,"Foreign venture capital investors institutions [Member]",null,null,null,null,null,null,null,"CategoryOfUnitHoldingPatternDetailsAxis"]
[null,null,null,null,null,null,"(i)","Other institutions Unit Holding",{"$f":"IF(COUNT('Other Institutions'!I59),('Other Institutions'!I59),\"\")","v":""},{"$f":"IF(COUNT('Other Institutions'!J59),('Other Institutions'!J59),\"\")","v":""},null,"OtherInstitutionsMember",null,null,"Other institutions [Member]",null,null,null,null,null,null,null,"CategoryOfUnitHoldingPatternDetailsAxis"]
[null,null,null,null,null,null,null,"Total institutions unit holding  Sub- Total (B) (1)",{"$f":"+IF(COUNT(I31:I39),SUM(I31:I39),\"\")","v":""},{"$f":"+IF(COUNT(J31:J39),SUM(J31:J39),\"\")","v":""},null,"InstitutionsMember",null,null,"Institutions [Member]",null,null,null,null,null,null,null,"CategoryOfUnitHoldingPatternDetailsAxis"]
[null,null,null,null,null,null,"(2)","Non-Institutions"]
[null,null,null,null,null,null,"(1)","Central government or state governments or president of India",null,null,null,"CentralGovernmentOrStateGovernmentsOrPresidentOfIndiaNonInstitutionsMember",null,null,"Central government or state governments or president of India non-institutions [Member]",null,null,null,null,null,null,null,"CategoryOfUnitHoldingPatternDetailsAxis"]
[null,null,null,null,null,null,"( a)","Individuals",null,null,null,"IndividualsNonInstitutionsMember",null,null,"Individuals non-institutions [Member]",null,null,null,null,null,null,null,"CategoryOfUnitHoldingPatternDetailsAxis"]
[null,null,null,null,null,null,"( b)","NBFCs registered with RBI",null,null,null,"NBFCsRegisteredWithRBINonInstitutionsMember",null,null,"NBFCs registered with RBI non-institutions [Member]",null,null,null,null,null,null,null,"CategoryOfUnitHoldingPatternDetailsAxis"]
[null,null,null,null,null,null,"( c)","Other non-institutions unit holding",{"$f":"IF(COUNT('Other Non-institutions'!I64),('Other Non-institutions'!I64),\"\")","v":""},{"$f":"IF(COUNT('Other Non-institutions'!J64),('Other Non-institutions'!J64),\"\")","v":""},null,"OtherNonInstitutionsMember",null,null,"Other non-institutions [Member]",null,null,null,null,null,null,null,"CategoryOfUnitHoldingPatternDetailsAxis"]
[null,null,null,null,null,null,null,"Total non-Institutions Sub- Total (B) (2)",{"$f":"+IF(COUNT(I42:I45),SUM(I42:I45),\"\")","v":""},{"$f":"+IF(COUNT(J42:J45),SUM(J42:J45),\"\")","v":""},null,"NonInstitutionsMember",null,null,"Non-institutions [Member]",null,null,null,null,null,null,null,"CategoryOfUnitHoldingPatternDetailsAxis"]
[null,null,null,null,null,null,null,"Total Public Unit holding (B) = (B)(1)+(B)(2)",{"$f":"IF(COUNT(I46,I40),SUM(I40,I46),\"\")","v":""},{"$f":"IF(COUNT(J46,J40),SUM(J40,J46),\"\")","v":""},null,"PublicHoldingMember",null,null,"Public holding [Member]",null,null,null,null,null,null,null,"CategoryOfUnitHoldingPatternDetailsAxis"]
[null,null,null,null,null,null,null,"Total Units Outstanding (C) = (A) + (B)",{"$f":"IF(COUNT(I28,I47),SUM(I28,I47),\"\")","v":""},{"$f":"IF(COUNT(J28,J47),SUM(J28,J47),\"\")","v":""},null,"TotalUnitsOutstandingMember",null,null,"Total units outstanding [Member]",null,null,null,null,null,null,null,"CategoryOfUnitHoldingPatternDetailsAxis"]
[]
[null,null,null,null,null,null,"1% Holding details can be obtained from the company, this requirement would be optional "]

{"sheet":"Other Indian","index":2,"n_rows":64,"n_cols":12,"rows_kept":64,"cut":false,"hidden":false,"merged":[[11,6,11,9]]}
[]
[null,null,null,null,null,null,null,"Name of other indian unit holder","Number of units held","As a percentage of total outstanding units"]
[]
[]
[]
[]
[]
[]
[]
[]
[]
[null,null,null,null,null,null,"Other indian unit holder"]
[null,null,null,null,null,null,"Category","Name of other indian unit holder","Number of units held","As a percentage of total outstanding units"]
[null,null,null,null,null,null,1,null,null,null,null,"Other Indian 1 [Member]"]
[null,null,null,null,null,null,2,null,null,null,null,"Other Indian 2 [Member]"]
[null,null,null,null,null,null,3,null,null,null,null,"Other Indian 3 [Member]"]
[null,null,null,null,null,null,4,null,null,null,null,"Other Indian 4 [Member]"]
[null,null,null,null,null,null,5,null,null,null,null,"Other Indian 5 [Member]"]
[null,null,null,null,null,null,6,null,null,null,null,"Other Indian 6 [Member]"]
[null,null,null,null,null,null,7,null,null,null,null,"Other Indian 7 [Member]"]
[null,null,null,null,null,null,8,null,null,null,null,"Other Indian 8 [Member]"]
[null,null,null,null,null,null,9,null,null,null,null,"Other Indian 9 [Member]"]
[null,null,null,null,null,null,10,null,null,null,null,"Other Indian 10 [Member]"]
[null,null,null,null,null,null,11,null,null,null,null,"Other Indian 11 [Member]"]
[null,null,null,null,null,null,12,null,null,null,null,"Other Indian 12 [Member]"]
[null,null,null,null,null,null,13,null,null,null,null,"Other Indian 13 [Member]"]
[null,null,null,null,null,null,14,null,null,null,null,"Other Indian 14 [Member]"]
[null,null,null,null,null,null,15,null,null,null,null,"Other Indian 15 [Member]"]
[null,null,null,null,null,null,16,null,null,null,null,"Other Indian 16 [Member]"]
[null,null,null,null,null,null,17,null,null,null,null,"Other Indian 17 [Member]"]
[null,null,null,null,null,null,18,null,null,null,null,"Other Indian 18 [Member]"]
[null,null,null,null,null,null,19,null,null,null,null,"Other Indian 19 [Member]"]
[null,null,null,null,null,null,20,null,null,null,null,"Other Indian 20 [Member]"]
[null,null,null,null,null,null,21,null,null,null,null,"Other Indian 21 [Member]"]
[null,null,null,null,null,null,22,null,null,null,null,"Other Indian 22 [Member]"]
[null,null,null,null,null,null,23,null,null,null,null,"Other Indian 23 [Member]"]
[null,null,null,null,null,null,24,null,null,null,null,"Other Indian 24 [Member]"]
[null,null,null,null,null,null,25,null,null,null,null,"Other Indian 25 [Member]"]
[null,null,null,null,null,null,26,null,null,null,null,"Other Indian 26 [Member]"]
[null,null,null,null,null,null,27,null,null,null,null,"Other Indian 27 [Member]"]
[null,null,null,null,null,null,28,null,null,null,null,"Other Indian 28 [Member]"]
[null,null,null,null,null,null,29,null,null,null,null,"Other Indian 29 [Member]"]
[null,null,null,null,null,null,30,null,null,null,null,"Other Indian 30 [Member]"]
[null,null,null,null,null,null,31,null,null,null,null,"Other Indian 31 [Member]"]
[null,null,null,null,null,null,32,null,null,null,null,"Other Indian 32 [Member]"]
[null,null,null,null,null,null,33,null,null,null,null,"Other Indian 33 [Member]"]
[null,null,null,null,null,null,34,null,null,null,null,"Other Indian 34 [Member]"]
[null,null,null,null,null,null,35,null,null,null,null,"Other Indian 35 [Member]"]
[null,null,null,null,null,null,36,null,null,null,null,"Other Indian 36 [Member]"]
[null,null,null,null,null,null,37,null,null,null,null,"Other Indian 37 [Member]"]
[null,null,null,null,null,null,38,null,null,null,null,"Other Indian 38 [Member]"]
[null,null,null,null,null,null,39,null,null,null,null,"Other Indian 39 [Member]"]
[null,null,null,null,null,null,40,null,null,null,null,"Other Indian 40 [Member]"]
[null,null,null,null,null,null,41,null,null,null,null,"Other Indian 41 [Member]"]
[null,null,null,null,null,null,42,null,null,null,null,"Other Indian 42 [Member]"]
[null,null,null,null,null,null,43,null,null,null,null,"Other Indian 43 [Member]"]
[null,null,null,null,null,null,44,null,null,null,null,"Other Indian 44 [Member]"]
[null,null,null,null,null,null,45,null,null,null,null,"Other Indian 45 [Member]"]
[null,null,null,null,null,null,46,null,null,null,null,"Other Indian 46 [Member]"]
[null,null,null,null,null,null,47,null,null,null,null,"Other Indian 47 [Member]"]
[null,null,null,null,null,null,48,null,null,null,null,"Other Indian 48 [Member]"]
[null,null,null,null,null,null,49,null,null,null,null,"Other Indian 49 [Member]"]
[null,null,null,null,null,null,50,null,null,null,null,"Other Indian 50 [Member]"]
[null,null,null,null,null,null,null,"Total other Indian unit holding",{"$f":"IF(COUNT(I14:I63),SUM(I14:I63),\"\")","v":""},{"$f":"IF(COUNT(J14:J63),SUM(J14:J63),\"\")","v":""},null,"Other Indian [Member]"]

{"sheet":"Other Foreign","index":3,"n_rows":64,"n_cols":12,"rows_kept":64,"cut":false,"hidden":false,"merged":[[11,6,11,9]]}
[]
[null,null,null,null,null,null,null,"Name of other indian unit holder","Number of units held","As a percentage of total outstanding units"]
[]
[]
[]
[]
[]
[]
[]
[]
[]
[null,null,null,null,null,null,"Other foreign unit holder"]
[null,null,null,null,null,null,"Category","Name of other foreign unit holder","Number of units held","As a percentage of total outstanding units"]
[null,null,null,null,null,null,1,null,null,null,null,"Other foreign 1 [Member]"]
[null,null,null,null,null,null,2,null,null,null,null,"Other foreign 2 [Member]"]
[null,null,null,null,null,null,3,null,null,null,null,"Other foreign 3 [Member]"]
[null,null,null,null,null,null,4,null,null,null,null,"Other foreign 4 [Member]"]
[null,null,null,null,null,null,5,null,null,null,null,"Other foreign 5 [Member]"]
[null,null,null,null,null,null,6,null,null,null,null,"Other foreign 6 [Member]"]
[null,null,null,null,null,null,7,null,null,null,null,"Other foreign 7 [Member]"]
[null,null,null,null,null,null,8,null,null,null,null,"Other foreign 8 [Member]"]
[null,null,null,null,null,null,9,null,null,null,null,"Other foreign 9 [Member]"]
[null,null,null,null,null,null,10,null,null,null,null,"Other foreign 10 [Member]"]
[null,null,null,null,null,null,11,null,null,null,null,"Other foreign 11 [Member]"]
[null,null,null,null,null,null,12,null,null,null,null,"Other foreign 12 [Member]"]
[null,null,null,null,null,null,13,null,null,null,null,"Other foreign 13 [Member]"]
[null,null,null,null,null,null,14,null,null,null,null,"Other foreign 14 [Member]"]
[null,null,null,null,null,null,15,null,null,null,null,"Other foreign 15 [Member]"]
[null,null,null,null,null,null,16,null,null,null,null,"Other foreign 16 [Member]"]
[null,null,null,null,null,null,17,null,null,null,null,"Other foreign 17 [Member]"]
[null,null,null,null,null,null,18,null,null,null,null,"Other foreign 18 [Member]"]
[null,null,null,null,null,null,19,null,null,null,null,"Other foreign 19 [Member]"]
[null,null,null,null,null,null,20,null,null,null,null,"Other foreign 20 [Member]"]
[null,null,null,null,null,null,21,null,null,null,null,"Other foreign 21 [Member]"]
[null,null,null,null,null,null,22,null,null,null,null,"Other foreign 22 [Member]"]
[null,null,null,null,null,null,23,null,null,null,null,"Other foreign 23 [Member]"]
[null,null,null,null,null,null,24,null,null,null,null,"Other foreign 24 [Member]"]
[null,null,null,null,null,null,25,null,null,null,null,"Other foreign 25 [Member]"]
[null,null,null,null,null,null,26,null,null,null,null,"Other foreign 26 [Member]"]
[null,null,null,null,null,null,27,null,null,null,null,"Other foreign 27 [Member]"]
[null,null,null,null,null,null,28,null,null,null,null,"Other foreign 28 [Member]"]
[null,null,null,null,null,null,29,null,null,null,null,"Other foreign 29 [Member]"]
[null,null,null,null,null,null,30,null,null,null,null,"Other foreign 30 [Member]"]
[null,null,null,null,null,null,31,null,null,null,null,"Other foreign 31 [Member]"]
[null,null,null,null,null,null,32,null,null,null,null,"Other foreign 32 [Member]"]
[null,null,null,null,null,null,33,null,null,null,null,"Other foreign 33 [Member]"]
[null,null,null,null,null,null,34,null,null,null,null,"Other foreign 34 [Member]"]
[null,null,null,null,null,null,35,null,null,null,null,"Other foreign 35 [Member]"]
[null,null,null,null,null,null,36,null,null,null,null,"Other foreign 36 [Member]"]
[null,null,null,null,null,null,37,null,null,null,null,"Other foreign 37 [Member]"]
[null,null,null,null,null,null,38,null,null,null,null,"Other foreign 38 [Member]"]
[null,null,null,null,null,null,39,null,null,null,null,"Other foreign 39 [Member]"]
[null,null,null,null,null,null,40,null,null,null,null,"Other foreign 40 [Member]"]
[null,null,null,null,null,null,41,null,null,null,null,"Other foreign 41 [Member]"]
[null,null,null,null,null,null,42,null,null,null,null,"Other foreign 42 [Member]"]
[null,null,null,null,null,null,43,null,null,null,null,"Other foreign 43 [Member]"]
[null,null,null,null,null,null,44,null,null,null,null,"Other foreign 44 [Member]"]
[null,null,null,null,null,null,45,null,null,null,null,"Other foreign 45 [Member]"]
[null,null,null,null,null,null,46,null,null,null,null,"Other foreign 46 [Member]"]
[null,null,null,null,null,null,47,null,null,null,null,"Other foreign 47 [Member]"]
[null,null,null,null,null,null,48,null,null,null,null,"Other foreign 48 [Member]"]
[null,null,null,null,null,null,49,null,null,null,null,"Other foreign 49 [Member]"]
[null,null,null,null,null,null,50,null,null,null,null,"Other foreign 50 [Member]"]
[null,null,null,null,null,null,null,"Total other foreign unit holding",{"$f":"IF(COUNT(I14:I63),SUM(I14:I63),\"\")","v":""},{"$f":"IF(COUNT(J14:J63),SUM(J14:J63),\"\")","v":""},null,"Other foreign [Member]"]

{"sheet":"Other Institutions","index":4,"n_rows":59,"n_cols":12,"rows_kept":59,"cut":false,"hidden":false,"merged":[[6,6,6,9]]}
[]
[null,null,null,null,null,null,null,"Name of other indian unit holder","Number of units held","As a percentage of total outstanding units"]
[]
[]
[]
[]
[null,null,null,null,null,null,"Other institutions unit holder"]
[null,null,null,null,null,null,"Sr","Name of institutions unit holder","Number of units held","As a percentage of total outstanding units"]
[null,null,null,null,null,null,1,null,null,null,null,"Other institutions 1 [Member]"]
[null,null,null,null,null,null,2,null,null,null,null,"Other institutions 2 [Member]"]
[null,null,null,null,null,null,3,null,null,null,null,"Other institutions 3 [Member]"]
[null,null,null,null,null,null,4,null,null,null,null,"Other institutions 4 [Member]"]
[null,null,null,null,null,null,5,null,null,null,null,"Other institutions 5 [Member]"]
[null,null,null,null,null,null,6,null,null,null,null,"Other institutions 6 [Member]"]
[null,null,null,null,null,null,7,null,null,null,null,"Other institutions 7 [Member]"]
[null,null,null,null,null,null,8,null,null,null,null,"Other institutions 8 [Member]"]
[null,null,null,null,null,null,9,null,null,null,null,"Other institutions 9 [Member]"]
[null,null,null,null,null,null,10,null,null,null,null,"Other institutions 10 [Member]"]
[null,null,null,null,null,null,11,null,null,null,null,"Other institutions 11 [Member]"]
[null,null,null,null,null,null,12,null,null,null,null,"Other institutions 12 [Member]"]
[null,null,null,null,null,null,13,null,null,null,null,"Other institutions 13 [Member]"]
[null,null,null,null,null,null,14,null,null,null,null,"Other institutions 14 [Member]"]
[null,null,null,null,null,null,15,null,null,null,null,"Other institutions 15 [Member]"]
[null,null,null,null,null,null,16,null,null,null,null,"Other institutions 16 [Member]"]
[null,null,null,null,null,null,17,null,null,null,null,"Other institutions 17 [Member]"]
[null,null,null,null,null,null,18,null,null,null,null,"Other institutions 18 [Member]"]
[null,null,null,null,null,null,19,null,null,null,null,"Other institutions 19 [Member]"]
[null,null,null,null,null,null,20,null,null,null,null,"Other institutions 20 [Member]"]
[null,null,null,null,null,null,21,null,null,null,null,"Other institutions 21 [Member]"]
[null,null,null,null,null,null,22,null,null,null,null,"Other institutions 22 [Member]"]
[null,null,null,null,null,null,23,null,null,null,null,"Other institutions 23 [Member]"]
[null,null,null,null,null,null,24,null,null,null,null,"Other institutions 24 [Member]"]
[null,null,null,null,null,null,25,null,null,null,null,"Other institutions 25 [Member]"]
[null,null,null,null,null,null,26,null,null,null,null,"Other institutions 26 [Member]"]
[null,null,null,null,null,null,27,null,null,null,null,"Other institutions 27 [Member]"]
[null,null,null,null,null,null,28,null,null,null,null,"Other institutions 28 [Member]"]
[null,null,null,null,null,null,29,null,null,null,null,"Other institutions 29 [Member]"]
[null,null,null,null,null,null,30,null,null,null,null,"Other institutions 30 [Member]"]
[null,null,null,null,null,null,31,null,null,null,null,"Other institutions 31 [Member]"]
[null,null,null,null,null,null,32,null,null,null,null,"Other institutions 32 [Member]"]
[null,null,null,null,null,null,33,null,null,null,null,"Other institutions 33 [Member]"]
[null,null,null,null,null,null,34,null,null,null,null,"Other institutions 34 [Member]"]
[null,null,null,null,null,null,35,null,null,null,null,"Other institutions 35 [Member]"]
[null,null,null,null,null,null,36,null,null,null,null,"Other institutions 36 [Member]"]
[null,null,null,null,null,null,37,null,null,null,null,"Other institutions 37 [Member]"]
[null,null,null,null,null,null,38,null,null,null,null,"Other institutions 38 [Member]"]
[null,null,null,null,null,null,39,null,null,null,null,"Other institutions 39 [Member]"]
[null,null,null,null,null,null,40,null,null,null,null,"Other institutions 40 [Member]"]
[null,null,null,null,null,null,41,null,null,null,null,"Other institutions 41 [Member]"]
[null,null,null,null,null,null,42,null,null,null,null,"Other institutions 42 [Member]"]
[null,null,null,null,null,null,43,null,null,null,null,"Other institutions 43 [Member]"]
[null,null,null,null,null,null,44,null,null,null,null,"Other institutions 44 [Member]"]
[null,null,null,null,null,null,45,null,null,null,null,"Other institutions 45 [Member]"]
[null,null,null,null,null,null,46,null,null,null,null,"Other institutions 46 [Member]"]
[null,null,null,null,null,null,47,null,null,null,null,"Other institutions 47 [Member]"]
[null,null,null,null,null,null,48,null,null,null,null,"Other institutions 48 [Member]"]
[null,null,null,null,null,null,49,null,null,null,null,"Other institutions 49 [Member]"]
[null,null,null,null,null,null,50,null,null,null,null,"Other institutions 50 [Member]"]
[null,null,null,null,null,null,null,"Total other institutions unit holding",{"$f":"IF(COUNT(I9:I58),SUM(I9:I58),\"\")","v":""},{"$f":"IF(COUNT(J9:J58),SUM(J9:J58),\"\")","v":""},null,"Other institutions [Member]"]

{"sheet":"Other Non-institutions","index":5,"n_rows":64,"n_cols":12,"rows_kept":64,"cut":false,"hidden":false,"merged":[[11,6,11,9]]}
[]
[null,null,null,null,null,null,null,"Name of other indian unit holder","Number of units held","As a percentage of total outstanding units"]
[]
[]
[]
[]
[]
[]
[]
[]
[]
[null,null,null,null,null,null,"Other non-institutions unit holder"]
[null,null,null,null,null,null,"Sr","Name of non-institutions unit holder","Number of units held","As a percentage of total outstanding units"]
[null,null,null,null,null,null,1,null,null,null,null,"Other non-institutions 1 [Member]"]
[null,null,null,null,null,null,2,null,null,null,null,"Other non-institutions 2 [Member]"]
[null,null,null,null,null,null,3,null,null,null,null,"Other non-institutions 3 [Member]"]
[null,null,null,null,null,null,4,null,null,null,null,"Other non-institutions 4 [Member]"]
[null,null,null,null,null,null,5,null,null,null,null,"Other non-institutions 5 [Member]"]
[null,null,null,null,null,null,6,null,null,null,null,"Other non-institutions 6 [Member]"]
[null,null,null,null,null,null,7,null,null,null,null,"Other non-institutions 7 [Member]"]
[null,null,null,null,null,null,8,null,null,null,null,"Other non-institutions 8 [Member]"]
[null,null,null,null,null,null,9,null,null,null,null,"Other non-institutions 9 [Member]"]
[null,null,null,null,null,null,10,null,null,null,null,"Other non-institutions 10 [Member]"]
[null,null,null,null,null,null,11,null,null,null,null,"Other non-institutions 11 [Member]"]
[null,null,null,null,null,null,12,null,null,null,null,"Other non-institutions 12 [Member]"]
[null,null,null,null,null,null,13,null,null,null,null,"Other non-institutions 13 [Member]"]
[null,null,null,null,null,null,14,null,null,null,null,"Other non-institutions 14 [Member]"]
[null,null,null,null,null,null,15,null,null,null,null,"Other non-institutions 15 [Member]"]
[null,null,null,null,null,null,16,null,null,null,null,"Other non-institutions 16 [Member]"]
[null,null,null,null,null,null,17,null,null,null,null,"Other non-institutions 17 [Member]"]
[null,null,null,null,null,null,18,null,null,null,null,"Other non-institutions 18 [Member]"]
[null,null,null,null,null,null,19,null,null,null,null,"Other non-institutions 19 [Member]"]
[null,null,null,null,null,null,20,null,null,null,null,"Other non-institutions 20 [Member]"]
[null,null,null,null,null,null,21,null,null,null,null,"Other non-institutions 21 [Member]"]
[null,null,null,null,null,null,22,null,null,null,null,"Other non-institutions 22 [Member]"]
[null,null,null,null,null,null,23,null,null,null,null,"Other non-institutions 23 [Member]"]
[null,null,null,null,null,null,24,null,null,null,null,"Other non-institutions 24 [Member]"]
[null,null,null,null,null,null,25,null,null,null,null,"Other non-institutions 25 [Member]"]
[null,null,null,null,null,null,26,null,null,null,null,"Other non-institutions 26 [Member]"]
[null,null,null,null,null,null,27,null,null,null,null,"Other non-institutions 27 [Member]"]
[null,null,null,null,null,null,28,null,null,null,null,"Other non-institutions 28 [Member]"]
[null,null,null,null,null,null,29,null,null,null,null,"Other non-institutions 29 [Member]"]
[null,null,null,null,null,null,30,null,null,null,null,"Other non-institutions 30 [Member]"]
[null,null,null,null,null,null,31,null,null,null,null,"Other non-institutions 31 [Member]"]
[null,null,null,null,null,null,32,null,null,null,null,"Other non-institutions 32 [Member]"]
[null,null,null,null,null,null,33,null,null,null,null,"Other non-institutions 33 [Member]"]
[null,null,null,null,null,null,34,null,null,null,null,"Other non-institutions 34 [Member]"]
[null,null,null,null,null,null,35,null,null,null,null,"Other non-institutions 35 [Member]"]
[null,null,null,null,null,null,36,null,null,null,null,"Other non-institutions 36 [Member]"]
[null,null,null,null,null,null,37,null,null,null,null,"Other non-institutions 37 [Member]"]
[null,null,null,null,null,null,38,null,null,null,null,"Other non-institutions 38 [Member]"]
[null,null,null,null,null,null,39,null,null,null,null,"Other non-institutions 39 [Member]"]
[null,null,null,null,null,null,40,null,null,null,null,"Other non-institutions 40 [Member]"]
[null,null,null,null,null,null,41,null,null,null,null,"Other non-institutions 41 [Member]"]
[null,null,null,null,null,null,42,null,null,null,null,"Other non-institutions 42 [Member]"]
[null,null,null,null,null,null,43,null,null,null,null,"Other non-institutions 43 [Member]"]
[null,null,null,null,null,null,44,null,null,null,null,"Other non-institutions 44 [Member]"]
[null,null,null,null,null,null,45,null,null,null,null,"Other non-institutions 45 [Member]"]
[null,null,null,null,null,null,46,null,null,null,null,"Other non-institutions 46 [Member]"]
[null,null,null,null,null,null,47,null,null,null,null,"Other non-institutions 47 [Member]"]
[null,null,null,null,null,null,48,null,null,null,null,"Other non-institutions 48 [Member]"]
[null,null,null,null,null,null,49,null,null,null,null,"Other non-institutions 49 [Member]"]
[null,null,null,null,null,null,50,null,null,null,null,"Other non-institutions 50 [Member]"]
[null,null,null,null,null,null,null,"Total other non-institutions unit holding",{"$f":"IF(COUNT(I14:I63),SUM(I14:I63),\"\")","v":""},{"$f":"IF(COUNT(J14:J63),SUM(J14:J63),\"\")","v":""},null,"Other non-institutions [Member]"]

{"sheet":"Taxonomy","index":6,"n_rows":317,"n_cols":5,"rows_kept":317,"cut":false,"hidden":true,"merged":[]}
["element","label","type","periodType","Validation"]
["GeneralInformationAboutTheCompanyAbstract","General information about the company [Abstract]","xbrli:stringItemType","duration"]
["NSESymbol","NSE symbol","xbrli:stringItemType","instant","NSE Symbol, Length must be 12."]
["NameOfTheCompany","Name of the company","xbrli:stringItemType","instant","This is a mandatory field. Please enter company name."]
["RegulationType","Regulation type","in-capmkt-types:RegulationType","instant"]
["NumberOfSecurities","Number of securities","xbrli:sharesItemType","instant"]
["AsOnDateOfUnitHoldingPattern","As on date of unit holding pattern","xbrli:dateItemType","instant"]
["DateOfStartOfReportingPeriod","Date of start of reporting period","xbrli:dateItemType","instant"]
["DateOfEndOfReportingPeriod","Date of end of reporting period","xbrli:dateItemType","instant"]
["AllotmentDateOfUnitHoldingPattern","Allotment date of unit holding pattern","xbrli:dateItemType","instant"]
["CompanyRemarksExplanatory","Company remarks [Text Block]","nonnum:textBlockItemType","instant"]
["DisclosureOfUnitHoldingPatternAbstract","Disclosure of unit holding pattern [Abstract]","xbrli:stringItemType","duration"]
["DisclosureOfUnitHoldingPatternTable","Disclosure of unit holding pattern [Table]","xbrli:stringItemType","duration"]
["CategoryOfUnitHoldingPatternDetailsAxis","Category of unit holding pattern details [Axis]","xbrli:stringItemType","duration"]
["TotalUnitsOutstandingMember","Total units outstanding [Member]","nonnum:domainItemType","duration"]
["UnitHoldingOfSponsorAndSponsorGroupMember","Unit holding of sponsor and sponsor group [Member]","nonnum:domainItemType","duration"]
["IndianMember","Indian [Member]","nonnum:domainItemType","duration"]
["IndividualsOrHUFMember","Individuals or HUF [Member]","nonnum:domainItemType","duration"]
["CentralGovernmentOrStateGovernmentMember","Central government or state government [Member]","nonnum:domainItemType","duration"]
["FinancialInstitutionsBanksMember","Financial institutions banks [Member]","nonnum:domainItemType","duration"]
["OtherIndianMember","Other Indian [Member]","nonnum:domainItemType","duration"]
["OtherIndian1Member","Other Indian 1 [Member]","nonnum:domainItemType","duration"]
["OtherIndian2Member","Other Indian 2 [Member]","nonnum:domainItemType","duration"]
["OtherIndian3Member","Other Indian 3 [Member]","nonnum:domainItemType","duration"]
["OtherIndian4Member","Other Indian 4 [Member]","nonnum:domainItemType","duration"]
["OtherIndian5Member","Other Indian 5 [Member]","nonnum:domainItemType","duration"]
["OtherIndian6Member","Other Indian 6 [Member]","nonnum:domainItemType","duration"]
["OtherIndian7Member","Other Indian 7 [Member]","nonnum:domainItemType","duration"]
["OtherIndian8Member","Other Indian 8 [Member]","nonnum:domainItemType","duration"]
["OtherIndian9Member","Other Indian 9 [Member]","nonnum:domainItemType","duration"]
["OtherIndian10Member","Other Indian 10 [Member]","nonnum:domainItemType","duration"]
["OtherIndian11Member","Other Indian 11 [Member]","nonnum:domainItemType","duration"]
["OtherIndian12Member","Other Indian 12 [Member]","nonnum:domainItemType","duration"]
["OtherIndian13Member","Other Indian 13 [Member]","nonnum:domainItemType","duration"]
["OtherIndian14Member","Other Indian 14 [Member]","nonnum:domainItemType","duration"]
["OtherIndian15Member","Other Indian 15 [Member]","nonnum:domainItemType","duration"]
["ForeignMember","Foreign [Member]","nonnum:domainItemType","duration"]
["IndividualsNonResidentIndiansOrForeignIndividualsMember","Individuals non-resident Indians or foreign individuals [Member]","nonnum:domainItemType","duration"]
["ForeignGovernmentMember","Foreign government [Member]","nonnum:domainItemType","duration"]
["ForeignInstitutionsMember","Institution [Member]","nonnum:domainItemType","duration"]
["ForeignPortfolioInvestorsMember","Foreign portfolio investors [Member]","nonnum:domainItemType","duration"]
["OtherForeignMember","Other foreign [Member]","nonnum:domainItemType","duration"]
["OtherForeign1Member","Other foreign 1 [Member]","nonnum:domainItemType","duration"]
["OtherForeign2Member","Other foreign 2 [Member]","nonnum:domainItemType","duration"]
["OtherForeign3Member","Other foreign 3 [Member]","nonnum:domainItemType","duration"]
["OtherForeign4Member","Other foreign 4 [Member]","nonnum:domainItemType","duration"]
["OtherForeign5Member","Other foreign 5 [Member]","nonnum:domainItemType","duration"]
["OtherForeign6Member","Other foreign 6 [Member]","nonnum:domainItemType","duration"]
["OtherForeign7Member","Other foreign 7 [Member]","nonnum:domainItemType","duration"]
["OtherForeign8Member","Other foreign 8 [Member]","nonnum:domainItemType","duration"]
["OtherForeign9Member","Other foreign 9 [Member]","nonnum:domainItemType","duration"]
["OtherForeign10Member","Other foreign 10 [Member]","nonnum:domainItemType","duration"]
["OtherForeign11Member","Other foreign 11 [Member]","nonnum:domainItemType","duration"]
["OtherForeign12Member","Other foreign 12 [Member]","nonnum:domainItemType","duration"]
["OtherForeign13Member","Other foreign 13 [Member]","nonnum:domainItemType","duration"]
["OtherForeign14Member","Other foreign 14 [Member]","nonnum:domainItemType","duration"]
["OtherForeign15Member","Other foreign 15 [Member]","nonnum:domainItemType","duration"]
["PublicHoldingMember","Public holding [Member]","nonnum:domainItemType","duration"]
["InstitutionsMember","Institutions [Member]","nonnum:domainItemType","duration"]
["MutualFundsInstitutionsMember","Mutual funds institutions [Member]","nonnum:domainItemType","duration"]
["FinancialInstitutionsOrBanksInstitutionsMember","Financial institutions or banks institutions [Member]","nonnum:domainItemType","duration"]
["CentralGovernmentOrStateGovernmentsMember","Central government Or state government institutions [Member]","nonnum:domainItemType","duration"]
["VentureCapitalFundsInstitutionsMember","Venture capital funds institutions [Member]","nonnum:domainItemType","duration"]
["InsuranceCompaniesInstitutionsMember","Insurance companies institutions [Member]","nonnum:domainItemType","duration"]
["ProvidentOrPensionFundsInstitutionsMember","Provident or pension funds institutions [Member]","nonnum:domainItemType","duration"]
["ForeignPortfolioInvestorsInstitutionsMember","Foreign portfolio investors institutions [Member]","nonnum:domainItemType","duration"]
["ForeignVentureCapitalInvestorsInstitutionsMember","Foreign venture capital investors institutions [Member]","nonnum:domainItemType","duration"]
["OtherInstitutionsMember","Other institutions [Member]","nonnum:domainItemType","duration"]
["OtherInstitutions1Member","Other institutions 1 [Member]","nonnum:domainItemType","duration"]
["OtherInstitutions2Member","Other institutions 2 [Member]","nonnum:domainItemType","duration"]
["OtherInstitutions3Member","Other institutions 3 [Member]","nonnum:domainItemType","duration"]
["OtherInstitutions4Member","Other institutions 4 [Member]","nonnum:domainItemType","duration"]
["OtherInstitutions5Member","Other institutions 5 [Member]","nonnum:domainItemType","duration"]
["OtherInstitutions6Member","Other institutions 6 [Member]","nonnum:domainItemType","duration"]
["OtherInstitutions7Member","Other institutions 7 [Member]","nonnum:domainItemType","duration"]
["OtherInstitutions8Member","Other institutions 8 [Member]","nonnum:domainItemType","duration"]
["OtherInstitutions9Member","Other institutions 9 [Member]","nonnum:domainItemType","duration"]
["OtherInstitutions10Member","Other institutions 10 [Member]","nonnum:domainItemType","duration"]
["OtherInstitutions11Member","Other institutions 11 [Member]","nonnum:domainItemType","duration"]
["OtherInstitutions12Member","Other institutions 12 [Member]","nonnum:domainItemType","duration"]
["OtherInstitutions13Member","Other institutions 13 [Member]","nonnum:domainItemType","duration"]
["OtherInstitutions14Member","Other institutions 14 [Member]","nonnum:domainItemType","duration"]
["OtherInstitutions15Member","Other institutions 15 [Member]","nonnum:domainItemType","duration"]
["NonInstitutionsMember","Non-institutions [Member]","nonnum:domainItemType","duration"]
["CentralGovernmentOrStateGovernmentsOrPresidentOfIndiaNonInstitutionsMember","Central government or state governments or president of India non-institutions [Member]","nonnum:domainItemType","duration"]
["IndividualsNonInstitutionsMember","Individuals non-institutions [Member]","nonnum:domainItemType","duration"]
["NBFCsRegisteredWithRBINonInstitutionsMember","NBFCs registered with RBI non-institutions [Member]","nonnum:domainItemType","duration"]
["OtherNonInstitutionsMember","Other non-institutions [Member]","nonnum:domainItemType","duration"]
["OtherNonInstitutions1Member","Other non-institutions 1 [Member]","nonnum:domainItemType","duration"]
["OtherNonInstitutions2Member","Other non-institutions 2 [Member]","nonnum:domainItemType","duration"]
["OtherNonInstitutions3Member","Other non-institutions 3 [Member]","nonnum:domainItemType","duration"]
["OtherNonInstitutions4Member","Other non-institutions 4 [Member]","nonnum:domainItemType","duration"]
["OtherNonInstitutions5Member","Other non-institutions 5 [Member]","nonnum:domainItemType","duration"]
["OtherNonInstitutions6Member","Other non-institutions 6 [Member]","nonnum:domainItemType","duration"]
["OtherNonInstitutions7Member","Other non-institutions 7 [Member]","nonnum:domainItemType","duration"]
["OtherNonInstitutions8Member","Other non-institutions 8 [Member]","nonnum:domainItemType","duration"]
["OtherNonInstitutions9Member","Other non-institutions 9 [Member]","nonnum:domainItemType","duration"]
["OtherNonInstitutions10Member","Other non-institutions 10 [Member]","nonnum:domainItemType","duration"]
["OtherNonInstitutions11Member","Other non-institutions 11 [Member]","nonnum:domainItemType","duration"]
["OtherNonInstitutions12Member","Other non-institutions 12 [Member]","nonnum:domainItemType","duration"]
["OtherNonInstitutions13Member","Other non-institutions 13 [Member]","nonnum:domainItemType","duration"]
["OtherNonInstitutions14Member","Other non-institutions 14 [Member]","nonnum:domainItemType","duration"]
["OtherNonInstitutions15Member","Other non-institutions 15 [Member]","nonnum:domainItemType","duration"]
["DisclosureOfUnitHoldingPatternLineItems","Disclosure of unit holding pattern [Line items]","xbrli:stringItemType","duration"]
["NatureOfOther","Category of Unit holder","xbrli:stringItemType","instant"]
["NatureOfOther","Name of other indian unit holder","xbrli:stringItemType","instant","This is a mandatory field."]
["NatureOfOther","Name of other foreign unit holder","xbrli:stringItemType","instant","This is a mandatory field."]
["NatureOfOther","Name of institutions unit holder","xbrli:stringItemType","instant","This is a mandatory field."]
["NatureOfOther","Name of non-institutions unit holder","xbrli:stringItemType","instant","This is a mandatory field."]
["NumberOfUnitsHeld","Number of units held","xbrli:sharesItemType","instant","This is a mandatory field."]
["AsAPercentageOfTotalOutStandingUnits","As a percentage of total outstanding units","num:percentItemType","instant","This is a mandatory field."]
["ISIN","ISIN","in-capmkt-types:ISINNumber","instant"]
["DateOfCapitalRestructuring","Capital Restructuring Date","xbrli:dateItemType","instant"]
["ReasonInCaseScoreIDIsNotAvailable","Reason in case score ID is not available","xbrli:stringItemType","instant"]
["RemarksForInvestorGrievanceExplanatory","Remarks for investor grievance [Text Block]","nonnum:textBlockItemType","instant"]
["InvestorGrievanceDetailsAbstract","Investor grievance details [Abstract]","xbrli:stringItemType","duration"]
["NumberOfInvestorComplaintsPending","Number of investor complaints pending","xbrli:decimalItemType","instant"]
["NumberOfInvestorComplaintsReceivedDuringTheQuarter","Number of investor complaints received during the quarter","xbrli:decimalItemType","duration"]
["NumberOfInvestorComplaintsDisposedOffDuringTheQuarter","Number of investor complaints disposed off during the quarter","xbrli:decimalItemType","duration"]
["TypeOfRegulation","Type of regulation","in-capmkt-types:TypeRegulation","instant"]
["DisclosureOfRegulation7AndRegulation40Abstract","Disclosure of regulation 7(3) and regulation 40(10) [Abstract]","xbrli:stringItemType","duration"]
["Regulation4010Abstract","Regulation 40 (10) [Abstract]","xbrli:stringItemType","duration"]
["DateOfCertificate","Date of certificate","xbrli:dateItemType","instant"]
["NameOfCompanySecretary","Name of company secretary","xbrli:stringItemType","instant"]
["CertificateOfPracticeNumberOrFellowCompanySecretaryNumber","Certificate of practice number or fellow company secretary number","xbrli:stringItemType","instant"]
["RemarksForRegulation4010Explanatory","Remarks for regulation 40(10) [Text Block]","nonnum:textBlockItemType","instant"]
["Regulation73Abstract","Regulation 7(3) [Abstract]","xbrli:stringItemType","duration"]
["NameOfShareTransferAgent","Name of share transfer agent","xbrli:stringItemType","instant"]
["RemarksForRegulation73Explanatory","Remarks For Regulation 7(3) [Text Block]","nonnum:textBlockItemType","instant"]
["DisclosureOfUnitHoldingPatternTableNotAll","Disclosure of unit holding pattern [Table not all]","xbrli:stringItemType","duration"]
["OtherIndian16Member","Other Indian 16 [Member]","nonnum:domainItemType","duration"]
["OtherIndian17Member","Other Indian 17 [Member]","nonnum:domainItemType","duration"]
["OtherIndian18Member","Other Indian 18 [Member]","nonnum:domainItemType","duration"]
["OtherIndian19Member","Other Indian 19 [Member]","nonnum:domainItemType","duration"]
["OtherIndian20Member","Other Indian 20 [Member]","nonnum:domainItemType","duration"]
["OtherIndian21Member","Other Indian 21 [Member]","nonnum:domainItemType","duration"]
["OtherIndian22Member","Other Indian 22 [Member]","nonnum:domainItemType","duration"]
["OtherIndian23Member","Other Indian 23 [Member]","nonnum:domainItemType","duration"]
["OtherIndian24Member","Other Indian 24 [Member]","nonnum:domainItemType","duration"]
["OtherIndian25Member","Other Indian 25 [Member]","nonnum:domainItemType","duration"]
["OtherIndian26Member","Other Indian 26 [Member]","nonnum:domainItemType","duration"]
["OtherIndian27Member","Other Indian 27 [Member]","nonnum:domainItemType","duration"]
["OtherIndian28Member","Other Indian 28 [Member]","nonnum:domainItemType","duration"]
["OtherIndian29Member","Other Indian 29 [Member]","nonnum:domainItemType","duration"]
["OtherIndian30Member","Other Indian 30 [Member]","nonnum:domainItemType","duration"]
["OtherIndian31Member","Other Indian 31 [Member]","nonnum:domainItemType","duration"]
["OtherIndian32Member","Other Indian 32 [Member]","nonnum:domainItemType","duration"]
["OtherIndian33Member","Other Indian 33 [Member]","nonnum:domainItemType","duration"]
["OtherIndian34Member","Other Indian 34 [Member]","nonnum:domainItemType","duration"]
["OtherIndian35Member","Other Indian 35 [Member]","nonnum:domainItemType","duration"]
["OtherIndian36Member","Other Indian 36 [Member]","nonnum:domainItemType","duration"]
["OtherIndian37Member","Other Indian 37 [Member]","nonnum:domainItemType","duration"]
["OtherIndian38Member","Other Indian 38 [Member]","nonnum:domainItemType","duration"]
["OtherIndian39Member","Other Indian 39 [Member]","nonnum:domainItemType","duration"]
["OtherIndian40Member","Other Indian 40 [Member]","nonnum:domainItemType","duration"]
["OtherIndian41Member","Other Indian 41 [Member]","nonnum:domainItemType","duration"]
["OtherIndian42Member","Other Indian 42 [Member]","nonnum:domainItemType","duration"]
["OtherIndian43Member","Other Indian 43 [Member]","nonnum:domainItemType","duration"]
["OtherIndian44Member","Other Indian 44 [Member]","nonnum:domainItemType","duration"]
["OtherIndian45Member","Other Indian 45 [Member]","nonnum:domainItemType","duration"]
["OtherIndian46Member","Other Indian 46 [Member]","nonnum:domainItemType","duration"]
["OtherIndian47Member","Other Indian 47 [Member]","nonnum:domainItemType","duration"]
["OtherIndian48Member","Other Indian 48 [Member]","nonnum:domainItemType","duration"]
["OtherIndian49Member","Other Indian 49 [Member]","nonnum:domainItemType","duration"]
["OtherIndian50Member","Other Indian 50 [Member]","nonnum:domainItemType","duration"]
["OtherForeign16Member","Other foreign 16 [Member]","nonnum:domainItemType","duration"]
["OtherForeign17Member","Other foreign 17 [Member]","nonnum:domainItemType","duration"]
["OtherForeign18Member","Other foreign 18 [Member]","nonnum:domainItemType","duration"]
["OtherForeign19Member","Other foreign 19 [Member]","nonnum:domainItemType","duration"]
["OtherForeign20Member","Other foreign 20 [Member]","nonnum:domainItemType","duration"]
["OtherForeign21Member","Other foreign 21 [Member]","nonnum:domainItemType","duration"]
["OtherForeign22Member","Other foreign 22 [Member]","nonnum:domainItemType","duration"]
["OtherForeign23Member","Other foreign 23 [Member]","nonnum:domainItemType","duration"]
["OtherForeign24Member","Other foreign 24 [Member]","nonnum:domainItemType","duration"]
["OtherForeign25Member","Other foreign 25 [Member]","nonnum:domainItemType","duration"]
["OtherForeign26Member","Other foreign 26 [Member]","nonnum:domainItemType","duration"]
["OtherForeign27Member","Other foreign 27 [Member]","nonnum:domainItemType","duration"]
["OtherForeign28Member","Other foreign 28 [Member]","nonnum:domainItemType","duration"]
["OtherForeign29Member","Other foreign 29 [Member]","nonnum:domainItemType","duration"]
["OtherForeign30Member","Other foreign 30 [Member]","nonnum:domainItemType","duration"]
["OtherForeign31Member","Other foreign 31 [Member]","nonnum:domainItemType","duration"]
["OtherForeign32Member","Other foreign 32 [Member]","nonnum:domainItemType","duration"]
["OtherForeign33Member","Other foreign 33 [Member]","nonnum:domainItemType","duration"]
["OtherForeign34Member","Other foreign 34 [Member]","nonnum:domainItemType","duration"]
["OtherForeign35Member","Other foreign 35 [Member]","nonnum:domainItemType","duration"]
["OtherForeign36Member","Other foreign 36 [Member]","nonnum:domainItemType","duration"]
["OtherForeign37Member","Other foreign 37 [Member]","nonnum:domainItemType","duration"]
["OtherForeign38Member","Other foreign 38 [Member]","nonnum:domainItemType","duration"]
["OtherForeign39Member","Other foreign 39 [Member]","nonnum:domainItemType","duration"]
["OtherForeign40Member","Other foreign 40 [Member]","nonnum:domainItemType","duration"]
["OtherForeign41Member","Other foreign 41 [Member]","nonnum:domainItemType","duration"]
["OtherForeign42Member","Other foreign 42 [Member]","nonnum:domainItemType","duration"]
["OtherForeign43Member","Other foreign 43 [Member]","nonnum:domainItemType","duration"]
["OtherForeign44Member","Other foreign 44 [Member]","nonnum:domainItemType","duration"]
["OtherForeign45Member","Other foreign 45 [Member]","nonnum:domainItemType","duration"]
["OtherForeign46Member","Other foreign 46 [Member]","nonnum:domainItemType","duration"]
["OtherForeign47Member","Other foreign 47 [Member]","nonnum:domainItemType","duration"]
["OtherForeign48Member","Other foreign 48 [Member]","nonnum:domainItemType","duration"]
["OtherForeign49Member","Other foreign 49 [Member]","nonnum:domainItemType","duration"]
["OtherForeign50Member","Other foreign 50 [Member]","nonnum:domainItemType","duration"]
["OtherInstitutions16Member","Other institutions 16 [Member]","nonnum:domainItemType","duration"]
["OtherInstitutions17Member","Other institutions 17 [Member]","nonnum:domainItemType","duration"]
["OtherInstitutions18Member","Other institutions 18 [Member]","nonnum:domainItemType","duration"]
["OtherInstitutions19Member","Other institutions 19 [Member]","nonnum:domainItemType","duration"]
["OtherInstitutions20Member","Other institutions 20 [Member]","nonnum:domainItemType","duration"]
["OtherInstitutions21Member","Other institutions 21 [Member]","nonnum:domainItemType","duration"]
["OtherInstitutions22Member","Other institutions 22 [Member]","nonnum:domainItemType","duration"]
["OtherInstitutions23Member","Other institutions 23 [Member]","nonnum:domainItemType","duration"]
["OtherInstitutions24Member","Other institutions 24 [Member]","nonnum:domainItemType","duration"]
["OtherInstitutions25Member","Other institutions 25 [Member]","nonnum:domainItemType","duration"]
["OtherInstitutions26Member","Other institutions 26 [Member]","nonnum:domainItemType","duration"]
["OtherInstitutions27Member","Other institutions 27 [Member]","nonnum:domainItemType","duration"]
["OtherInstitutions28Member","Other institutions 28 [Member]","nonnum:domainItemType","duration"]
["OtherInstitutions29Member","Other institutions 29 [Member]","nonnum:domainItemType","duration"]
["OtherInstitutions30Member","Other institutions 30 [Member]","nonnum:domainItemType","duration"]
["OtherInstitutions31Member","Other institutions 31 [Member]","nonnum:domainItemType","duration"]
["OtherInstitutions32Member","Other institutions 32 [Member]","nonnum:domainItemType","duration"]
["OtherInstitutions33Member","Other institutions 33 [Member]","nonnum:domainItemType","duration"]
["OtherInstitutions34Member","Other institutions 34 [Member]","nonnum:domainItemType","duration"]
["OtherInstitutions35Member","Other institutions 35 [Member]","nonnum:domainItemType","duration"]
["OtherInstitutions36Member","Other institutions 36 [Member]","nonnum:domainItemType","duration"]
["OtherInstitutions37Member","Other institutions 37 [Member]","nonnum:domainItemType","duration"]
["OtherInstitutions38Member","Other institutions 38 [Member]","nonnum:domainItemType","duration"]
["OtherInstitutions39Member","Other institutions 39 [Member]","nonnum:domainItemType","duration"]
["OtherInstitutions40Member","Other institutions 40 [Member]","nonnum:domainItemType","duration"]
["OtherInstitutions41Member","Other institutions 41 [Member]","nonnum:domainItemType","duration"]
["OtherInstitutions42Member","Other institutions 42 [Member]","nonnum:domainItemType","duration"]
["OtherInstitutions43Member","Other institutions 43 [Member]","nonnum:domainItemType","duration"]
["OtherInstitutions44Member","Other institutions 44 [Member]","nonnum:domainItemType","duration"]
["OtherInstitutions45Member","Other institutions 45 [Member]","nonnum:domainItemType","duration"]
["OtherInstitutions46Member","Other institutions 46 [Member]","nonnum:domainItemType","duration"]
["OtherInstitutions47Member","Other institutions 47 [Member]","nonnum:domainItemType","duration"]
["OtherInstitutions48Member","Other institutions 48 [Member]","nonnum:domainItemType","duration"]
["OtherInstitutions49Member","Other institutions 49 [Member]","nonnum:domainItemType","duration"]
["OtherInstitutions50Member","Other institutions 50 [Member]","nonnum:domainItemType","duration"]
["OtherNonInstitutions16Member","Other non-institutions 16 [Member]","nonnum:domainItemType","duration"]
["OtherNonInstitutions17Member","Other non-institutions 17 [Member]","nonnum:domainItemType","duration"]
["OtherNonInstitutions18Member","Other non-institutions 18 [Member]","nonnum:domainItemType","duration"]
["OtherNonInstitutions19Member","Other non-institutions 19 [Member]","nonnum:domainItemType","duration"]
["OtherNonInstitutions20Member","Other non-institutions 20 [Member]","nonnum:domainItemType","duration"]
["OtherNonInstitutions21Member","Other non-institutions 21 [Member]","nonnum:domainItemType","duration"]
["OtherNonInstitutions22Member","Other non-institutions 22 [Member]","nonnum:domainItemType","duration"]
["OtherNonInstitutions23Member","Other non-institutions 23 [Member]","nonnum:domainItemType","duration"]
["OtherNonInstitutions24Member","Other non-institutions 24 [Member]","nonnum:domainItemType","duration"]
["OtherNonInstitutions25Member","Other non-institutions 25 [Member]","nonnum:domainItemType","duration"]
["OtherNonInstitutions26Member","Other non-institutions 26 [Member]","nonnum:domainItemType","duration"]
["OtherNonInstitutions27Member","Other non-institutions 27 [Member]","nonnum:domainItemType","duration"]
["OtherNonInstitutions28Member","Other non-institutions 28 [Member]","nonnum:domainItemType","duration"]
["OtherNonInstitutions29Member","Other non-institutions 29 [Member]","nonnum:domainItemType","duration"]
["OtherNonInstitutions30Member","Other non-institutions 30 [Member]","nonnum:domainItemType","duration"]
["OtherNonInstitutions31Member","Other non-institutions 31 [Member]","nonnum:domainItemType","duration"]
["OtherNonInstitutions32Member","Other non-institutions 32 [Member]","nonnum:domainItemType","duration"]
["OtherNonInstitutions33Member","Other non-institutions 33 [Member]","nonnum:domainItemType","duration"]
["OtherNonInstitutions34Member","Other non-institutions 34 [Member]","nonnum:domainItemType","duration"]
["OtherNonInstitutions35Member","Other non-institutions 35 [Member]","nonnum:domainItemType","duration"]
["OtherNonInstitutions36Member","Other non-institutions 36 [Member]","nonnum:domainItemType","duration"]
["OtherNonInstitutions37Member","Other non-institutions 37 [Member]","nonnum:domainItemType","duration"]
["OtherNonInstitutions38Member","Other non-institutions 38 [Member]","nonnum:domainItemType","duration"]
["OtherNonInstitutions39Member","Other non-institutions 39 [Member]","nonnum:domainItemType","duration"]
["OtherNonInstitutions40Member","Other non-institutions 40 [Member]","nonnum:domainItemType","duration"]
["OtherNonInstitutions41Member","Other non-institutions 41 [Member]","nonnum:domainItemType","duration"]
["OtherNonInstitutions42Member","Other non-institutions 42 [Member]","nonnum:domainItemType","duration"]
["OtherNonInstitutions43Member","Other non-institutions 43 [Member]","nonnum:domainItemType","duration"]
["OtherNonInstitutions44Member","Other non-institutions 44 [Member]","nonnum:domainItemType","duration"]
["OtherNonInstitutions45Member","Other non-institutions 45 [Member]","nonnum:domainItemType","duration"]
["OtherNonInstitutions46Member","Other non-institutions 46 [Member]","nonnum:domainItemType","duration"]
["OtherNonInstitutions47Member","Other non-institutions 47 [Member]","nonnum:domainItemType","duration"]
["OtherNonInstitutions48Member","Other non-institutions 48 [Member]","nonnum:domainItemType","duration"]
["OtherNonInstitutions49Member","Other non-institutions 49 [Member]","nonnum:domainItemType","duration"]
["OtherNonInstitutions50Member","Other non-institutions 50 [Member]","nonnum:domainItemType","duration"]
["ScripCode","BSE scrip code","in-capmkt-types:ScripCode","instant","This is a mandatory field. Should be valid SCRIP CODE  as per BSE Scrip Code Format. "]
["MSEISymbol","MSEI symbol","xbrli:stringItemType","instant"]
["DetailsOfChangeInHoldingOfSecuritiesOfPromotersEmployeeOrDirectorOfAListedCompanyAndOtherSuchPersonsAbstract","Details of change in holding of securities of promoters employee or director of a listed company and other such persons [Abstract]","xbrli:stringItemType","duration"]
["DetailsOfChangeInHoldingOfSecuritiesOfPromotersEmployeeOrDirectorOfAListedCompanyAndOtherSuchPersonsTable","Details of change in holding of securities of promoters employee or director of a listed company and other such persons [Table]","xbrli:stringItemType","duration"]
["ChangeInHoldingOfSecuritiesOfPromotersAxis","Change in holding of securities of promoters [Axis]","xbrli:stringItemType","duration"]
["DetailsOfChangeInHoldingOfSecuritiesOfPromotersEmployeeOrDirectorOfAListedCompanyAndOtherSuchPersonsLineItems","Details of change in holding of securities of promoters employee or director of a listed company and other such persons [Line Items]","xbrli:stringItemType","duration"]
["TypeOfInstrument","Type of instrument","in-capmkt-types:TypeOfInstrument","instant"]
["CategoryOfPerson","Category of person","in-capmkt-types:CategoryOfPerson","instant"]
["NameOfThePerson","Name of the person","xbrli:stringItemType","instant"]
["PANNumber","PAN number","in-capmkt-types:PANNumber","instant"]
["IdentificationNumberOfDirectorOrCompany","Identification number of director or company","xbrli:stringItemType","instant"]
["Address","Address","xbrli:stringItemType","instant"]
["SecuritiesHeldPriorToAcquisitionOrDisposalAbstract","Securities held prior to acquisition / disposal [Abstract]","xbrli:stringItemType","duration"]
["SecuritiesHeldPriorToAcquisitionOrDisposalNumberOfSecurity","Securities held prior to acquisition / disposal number of security","xbrli:sharesItemType","instant"]
["SecuritiesHeldPriorToAcquisitionOrDisposalPercentageOfShareholding","Securities held prior to acquisition / disposal percentage of shareholding","num:percentItemType","instant"]
["SecuritiesAcquiredOrDisposedAbstract","Securities acquired or disposed [Abstract]","xbrli:stringItemType","duration"]
["SecuritiesAcquiredOrDisposedNumberOfSecurity","Securities acquired or disposed number of security","xbrli:sharesItemType","instant"]
["SecuritiesAcquiredOrDisposedValueOfSecurity","Securities acquired or disposed Value of security","xbrli:sharesItemType","instant"]
["SecuritiesAcquiredOrDisposedTransactionType","Securities acquired or disposed transaction type","in-capmkt-types:AcquisitionOrDisposal","instant"]
["SecuritiesHeldPostAcquistionOrDisposalAbstract","Securities held post acquistion or disposal [Abstract]","xbrli:stringItemType","duration"]
["SecuritiesHeldPostAcquistionOrDisposalNumberOfSecurity","Securities held post acquistion or disposal Number of security","xbrli:sharesItemType","instant"]
["SecuritiesHeldPostAcquistionOrDisposalPercentageOfShareholding","Securities held post acquistion or disposal Percentage of shareholding","num:percentItemType","instant"]
["DateOfAllotmentAdviceOrAcquisitionOfSharesOrSaleOfSharesSpecifyAbstract","Date of allotment advice or acquisition of shares or sale of shares specify [Abstract]","xbrli:stringItemType","duration"]
["DateOfAllotmentAdviceOrAcquisitionOfSharesOrSaleOfSharesSpecifyFromDate","Date of allotment advice or acquisition of shares or sale of shares specify from date","xbrli:dateItemType","instant"]
["DateOfAllotmentAdviceOrAcquisitionOfSharesOrSaleOfSharesSpecifyToDate","Date of allotment advice or acquisition of shares or sale of shares specify to date","xbrli:dateItemType","instant"]
["DateOfIntimationToCompany","Date of intimation to company","xbrli:dateItemType","instant"]
["TypeOfContract","Type of contract","in-capmkt-types:TypeOfContract","instant"]
["ContractSpecification","Contract specification","xbrli:stringItemType","instant"]
["BuyAbstract","Buy [Abstract]","xbrli:stringItemType","duration"]
["BuyNotionalValue","Buy notional value","xbrli:monetaryItemType","instant"]
["BuyNumberOfUnits","Buy number of units","xbrli:sharesItemType","instant"]
["SellAbstract","Sell [Abstract]","xbrli:stringItemType","duration"]
["NotionalValue","Notional value","xbrli:monetaryItemType","instant"]
["NumberOfUnits","Number of units","xbrli:sharesItemType","instant"]
["ExchangeOnWhichTheTradeWasExecuted","Exchange on which the trade was executed","in-capmkt-types:ExchangeTrade","instant"]
["ValueInAggregate","Total value in aggregate","xbrli:monetaryItemType","instant"]
["ModeOfAcquisitionOrDisposal","Mode of acquisition or disposal","in-capmkt-types:ModeOfAcquisitionOrDisposal","instant"]
["RegulationOfInsiderTrading","Regulation of insider trading","in-capmkt-types:RegulationOfInsiderTrading","instant"]
["ConnectionWithTheCompany","Connection with the company","xbrli:stringItemType","instant"]
["TradingInSecuritiesByOtherConnectedPersonsAxis","Trading in securities by other connected persons [Axis]","xbrli:stringItemType","duration"]
["DetailsOfTradingInSecuritiesByOtherConnectedPersonsAsIdentifiedByTheCompanyAbstract","Details of trading in securities by other connected persons as identified by the company [Abstract]","xbrli:stringItemType","duration"]
["DetailsOfTradingInSecuritiesByOtherConnectedPersonsAsIdentifiedByTheCompanyTable","Details of trading in securities by other connected persons as identified by the company [Table]","xbrli:stringItemType","duration"]
["DetailsOfTradingInSecuritiesByOtherConnectedPersonsAsIdentifiedByTheCompanyLineItems","Details of trading in securities by other connected persons as identified by the company [Line Items]","xbrli:stringItemType","duration"]
["TypeOfReport","Type of Report"," <xsd:enumeration value=\"Pre Listing\" />\n  <xsd:enumeration value=\"Capital Restructuring\" />\n  <xsd:enumeration value=\"Quarterly\" />",null,"This is a mandatory field. Please select value from the drop-down."]
["DateOfReport","Quarter Ended","xbrli:dateItemType",null,"This is a mandatory field. Please enter date in \"dd-mm-yyyy\" format."]
["DateOfListing"," Listing Date","xbrli:dateItemType",null,"This is a mandatory field. Please enter date in \"dd-mm-yyyy\" format."]
["CapitalRestructuringDateOrListingDate","Capital Restructuring Date / Listing Date","xbrli:dateItemType","instant"]

{"sheet":"TextBlock","index":7,"n_rows":0,"n_cols":0,"rows_kept":0,"cut":false,"hidden":true,"merged":[]}

{"sheet":"ElementMaster","index":8,"n_rows":309,"n_cols":15,"rows_kept":309,"cut":false,"hidden":true,"merged":[]}
["ID","Prefix","Name","ElementType","SubstitutionGroup","Balance","PeriodType","IsAbstract","InsertDate","UpdateDate","DeleteDate","IsDeleted","IsMandetory","sheetname","labelname"]
[1,"in-capmkt","GeneralInformationAboutTheCompanyAbstract","xbrli:stringItemType","xbrli:item",0,"duration","true","2018-07-18",null,null,false,false]
[2,"in-capmkt","NSESymbol","in-capmkt-types:Symbol","xbrli:item",0,"instant","false","2018-07-18",null,null,false,false]
[3,"in-capmkt","NameOfTheCompany","xbrli:stringItemType","xbrli:item",0,"instant","false","2018-07-18",null,null,false,false]
[4,"in-capmkt","RegulationType","in-capmkt-types:RegulationType","xbrli:item",0,"instant","false","2018-07-18",null,null,false,false]
[5,"in-capmkt","NumberOfSecurities","xbrli:sharesItemType","xbrli:item",0,"instant","false","2018-07-18",null,null,false,false]
[6,"in-capmkt","AsOnDateOfUnitHoldingPattern","xbrli:dateItemType","xbrli:item",0,"instant","false","2018-07-18",null,null,false,false]
[7,"in-capmkt","DateOfStartOfReportingPeriod","xbrli:dateItemType","xbrli:item",0,"instant","false","2018-07-18",null,null,false,false]
[8,"in-capmkt","DateOfEndOfReportingPeriod","xbrli:dateItemType","xbrli:item",0,"instant","false","2018-07-18",null,null,false,false]
[9,"in-capmkt","AllotmentDateOfUnitHoldingPattern","xbrli:dateItemType","xbrli:item",0,"instant","false","2018-07-18",null,null,false,false]
[10,"in-capmkt","CompanyRemarksExplanatory","nonnum:textBlockItemType","xbrli:item",0,"instant","false","2018-07-18",null,null,false,false]
[11,"in-capmkt","DisclosureOfUnitHoldingPatternAbstract","xbrli:stringItemType","xbrli:item",0,"duration","true","2018-07-18",null,null,false,false]
[12,"in-capmkt","DisclosureOfUnitHoldingPatternTable","xbrli:stringItemType","xbrldt:hypercubeItem",0,"duration","true","2018-07-18",null,null,false,false]
[13,"in-capmkt","CategoryOfUnitHoldingPatternDetailsAxis","xbrli:stringItemType","xbrldt:dimensionItem",0,"duration","true","2018-07-18",null,null,false,false]
[14,"in-capmkt","TotalUnitsOutstandingMember","nonnum:domainItemType","xbrli:item",0,"duration","true","2018-07-18",null,null,false,false]
[15,"in-capmkt","UnitHoldingOfSponsorAndSponsorGroupMember","nonnum:domainItemType","xbrli:item",0,"duration","true","2018-07-18",null,null,false,false]
[16,"in-capmkt","IndianMember","nonnum:domainItemType","xbrli:item",0,"duration","true","2018-07-18",null,null,false,false]
[17,"in-capmkt","IndividualsOrHUFMember","nonnum:domainItemType","xbrli:item",0,"duration","true","2018-07-18",null,null,false,false]
[18,"in-capmkt","CentralGovernmentOrStateGovernmentMember","nonnum:domainItemType","xbrli:item",0,"duration","true","2018-07-18",null,null,false,false]
[19,"in-capmkt","FinancialInstitutionsBanksMember","nonnum:domainItemType","xbrli:item",0,"duration","true","2018-07-18",null,null,false,false]
[20,"in-capmkt","OtherIndianMember","nonnum:domainItemType","xbrli:item",0,"duration","true","2018-07-18",null,null,false,false]
[21,"in-capmkt","OtherIndian1Member","nonnum:domainItemType","xbrli:item",0,"duration","true","2018-07-18",null,null,false,false]
[22,"in-capmkt","OtherIndian2Member","nonnum:domainItemType","xbrli:item",0,"duration","true","2018-07-18",null,null,false,false]
[23,"in-capmkt","OtherIndian3Member","nonnum:domainItemType","xbrli:item",0,"duration","true","2018-07-18",null,null,false,false]
[24,"in-capmkt","OtherIndian4Member","nonnum:domainItemType","xbrli:item",0,"duration","true","2018-07-18",null,null,false,false]
[25,"in-capmkt","OtherIndian5Member","nonnum:domainItemType","xbrli:item",0,"duration","true","2018-07-18",null,null,false,false]
[26,"in-capmkt","OtherIndian6Member","nonnum:domainItemType","xbrli:item",0,"duration","true","2018-07-18",null,null,false,false]
[27,"in-capmkt","OtherIndian7Member","nonnum:domainItemType","xbrli:item",0,"duration","true","2018-07-18",null,null,false,false]
[28,"in-capmkt","OtherIndian8Member","nonnum:domainItemType","xbrli:item",0,"duration","true","2018-07-18",null,null,false,false]
[29,"in-capmkt","OtherIndian9Member","nonnum:domainItemType","xbrli:item",0,"duration","true","2018-07-18",null,null,false,false]
[30,"in-capmkt","OtherIndian10Member","nonnum:domainItemType","xbrli:item",0,"duration","true","2018-07-18",null,null,false,false]
[31,"in-capmkt","OtherIndian11Member","nonnum:domainItemType","xbrli:item",0,"duration","true","2018-07-18",null,null,false,false]
[32,"in-capmkt","OtherIndian12Member","nonnum:domainItemType","xbrli:item",0,"duration","true","2018-07-18",null,null,false,false]
[33,"in-capmkt","OtherIndian13Member","nonnum:domainItemType","xbrli:item",0,"duration","true","2018-07-18",null,null,false,false]
[34,"in-capmkt","OtherIndian14Member","nonnum:domainItemType","xbrli:item",0,"duration","true","2018-07-18",null,null,false,false]
[35,"in-capmkt","OtherIndian15Member","nonnum:domainItemType","xbrli:item",0,"duration","true","2018-07-18",null,null,false,false]
[36,"in-capmkt","ForeignMember","nonnum:domainItemType","xbrli:item",0,"duration","true","2018-07-18",null,null,false,false]
[37,"in-capmkt","IndividualsNonResidentIndiansOrForeignIndividualsMember","nonnum:domainItemType","xbrli:item",0,"duration","true","2018-07-18",null,null,false,false]
[38,"in-capmkt","ForeignGovernmentMember","nonnum:domainItemType","xbrli:item",0,"duration","true","2018-07-18",null,null,false,false]
[39,"in-capmkt","InstitutionMember","nonnum:domainItemType","xbrli:item",0,"duration","true","2018-07-18",null,null,false,false]
[40,"in-capmkt","ForeignPortfolioInvestorsMember","nonnum:domainItemType","xbrli:item",0,"duration","true","2018-07-18",null,null,false,false]
[41,"in-capmkt","OtherForeignMember","nonnum:domainItemType","xbrli:item",0,"duration","true","2018-07-18",null,null,false,false]
[42,"in-capmkt","OtherForeign1Member","nonnum:domainItemType","xbrli:item",0,"duration","true","2018-07-18",null,null,false,false]
[43,"in-capmkt","OtherForeign2Member","nonnum:domainItemType","xbrli:item",0,"duration","true","2018-07-18",null,null,false,false]
[44,"in-capmkt","OtherForeign3Member","nonnum:domainItemType","xbrli:item",0,"duration","true","2018-07-18",null,null,false,false]
[45,"in-capmkt","OtherForeign4Member","nonnum:domainItemType","xbrli:item",0,"duration","true","2018-07-18",null,null,false,false]
[46,"in-capmkt","OtherForeign5Member","nonnum:domainItemType","xbrli:item",0,"duration","true","2018-07-18",null,null,false,false]
[47,"in-capmkt","OtherForeign6Member","nonnum:domainItemType","xbrli:item",0,"duration","true","2018-07-18",null,null,false,false]
[48,"in-capmkt","OtherForeign7Member","nonnum:domainItemType","xbrli:item",0,"duration","true","2018-07-18",null,null,false,false]
[49,"in-capmkt","OtherForeign8Member","nonnum:domainItemType","xbrli:item",0,"duration","true","2018-07-18",null,null,false,false]
[50,"in-capmkt","OtherForeign9Member","nonnum:domainItemType","xbrli:item",0,"duration","true","2018-07-18",null,null,false,false]
[51,"in-capmkt","OtherForeign10Member","nonnum:domainItemType","xbrli:item",0,"duration","true","2018-07-18",null,null,false,false]
[52,"in-capmkt","OtherForeign11Member","nonnum:domainItemType","xbrli:item",0,"duration","true","2018-07-18",null,null,false,false]
[53,"in-capmkt","OtherForeign12Member","nonnum:domainItemType","xbrli:item",0,"duration","true","2018-07-18",null,null,false,false]
[54,"in-capmkt","OtherForeign13Member","nonnum:domainItemType","xbrli:item",0,"duration","true","2018-07-18",null,null,false,false]
[55,"in-capmkt","OtherForeign14Member","nonnum:domainItemType","xbrli:item",0,"duration","true","2018-07-18",null,null,false,false]
[56,"in-capmkt","OtherForeign15Member","nonnum:domainItemType","xbrli:item",0,"duration","true","2018-07-18",null,null,false,false]
[57,"in-capmkt","PublicHoldingMember","nonnum:domainItemType","xbrli:item",0,"duration","true","2018-07-18",null,null,false,false]
[58,"in-capmkt","InstitutionsMember","nonnum:domainItemType","xbrli:item",0,"duration","true","2018-07-18",null,null,false,false]
[59,"in-capmkt","MutualFundsInstitutionsMember","nonnum:domainItemType","xbrli:item",0,"duration","true","2018-07-18",null,null,false,false]
[60,"in-capmkt","FinancialInstitutionsOrBanksInstitutionsMember","nonnum:domainItemType","xbrli:item",0,"duration","true","2018-07-18",null,null,false,false]
[61,"in-capmkt","CentralGovernmentOrStateGovernmentsMember","nonnum:domainItemType","xbrli:item",0,"duration","true","2018-07-18",null,null,false,false]
[62,"in-capmkt","VentureCapitalFundsInstitutionsMember","nonnum:domainItemType","xbrli:item",0,"duration","true","2018-07-18",null,null,false,false]
[63,"in-capmkt","InsuranceCompaniesInstitutionsMember","nonnum:domainItemType","xbrli:item",0,"duration","true","2018-07-18",null,null,false,false]
[64,"in-capmkt","ProvidentOrPensionFundsInstitutionsMember","nonnum:domainItemType","xbrli:item",0,"duration","true","2018-07-18",null,null,false,false]
[65,"in-capmkt","ForeignPortfolioInvestorsInstitutionsMember","nonnum:domainItemType","xbrli:item",0,"duration","true","2018-07-18",null,null,false,false]
[66,"in-capmkt","ForeignVentureCapitalInvestorsInstitutionsMember","nonnum:domainItemType","xbrli:item",0,"duration","true","2018-07-18",null,null,false,false]
[67,"in-capmkt","OtherInstitutionsMember","nonnum:domainItemType","xbrli:item",0,"duration","true","2018-07-18",null,null,false,false]
[68,"in-capmkt","OtherInstitutions1Member","nonnum:domainItemType","xbrli:item",0,"duration","true","2018-07-18",null,null,false,false]
[69,"in-capmkt","OtherInstitutions2Member","nonnum:domainItemType","xbrli:item",0,"duration","true","2018-07-18",null,null,false,false]
[70,"in-capmkt","OtherInstitutions3Member","nonnum:domainItemType","xbrli:item",0,"duration","true","2018-07-18",null,null,false,false]
[71,"in-capmkt","OtherInstitutions4Member","nonnum:domainItemType","xbrli:item",0,"duration","true","2018-07-18",null,null,false,false]
[72,"in-capmkt","OtherInstitutions5Member","nonnum:domainItemType","xbrli:item",0,"duration","true","2018-07-18",null,null,false,false]
[73,"in-capmkt","OtherInstitutions6Member","nonnum:domainItemType","xbrli:item",0,"duration","true","2018-07-18",null,null,false,false]
[74,"in-capmkt","OtherInstitutions7Member","nonnum:domainItemType","xbrli:item",0,"duration","true","2018-07-18",null,null,false,false]
[75,"in-capmkt","OtherInstitutions8Member","nonnum:domainItemType","xbrli:item",0,"duration","true","2018-07-18",null,null,false,false]
[76,"in-capmkt","OtherInstitutions9Member","nonnum:domainItemType","xbrli:item",0,"duration","true","2018-07-18",null,null,false,false]
[77,"in-capmkt","OtherInstitutions10Member","nonnum:domainItemType","xbrli:item",0,"duration","true","2018-07-18",null,null,false,false]
[78,"in-capmkt","OtherInstitutions11Member","nonnum:domainItemType","xbrli:item",0,"duration","true","2018-07-18",null,null,false,false]
[79,"in-capmkt","OtherInstitutions12Member","nonnum:domainItemType","xbrli:item",0,"duration","true","2018-07-18",null,null,false,false]
[80,"in-capmkt","OtherInstitutions13Member","nonnum:domainItemType","xbrli:item",0,"duration","true","2018-07-18",null,null,false,false]
[81,"in-capmkt","OtherInstitutions14Member","nonnum:domainItemType","xbrli:item",0,"duration","true","2018-07-18",null,null,false,false]
[82,"in-capmkt","OtherInstitutions15Member","nonnum:domainItemType","xbrli:item",0,"duration","true","2018-07-18",null,null,false,false]
[83,"in-capmkt","NonInstitutionsMember","nonnum:domainItemType","xbrli:item",0,"duration","true","2018-07-18",null,null,false,false]
[84,"in-capmkt","CentralGovernmentOrStateGovernmentsOrPresidentOfIndiaNonInstitutionsMember","nonnum:domainItemType","xbrli:item",0,"duration","true","2018-07-18",null,null,false,false]
[85,"in-capmkt","IndividualsNonInstitutionsMember","nonnum:domainItemType","xbrli:item",0,"duration","true","2018-07-18",null,null,false,false]
[86,"in-capmkt","NBFCsRegisteredWithRBINonInstitutionsMember","nonnum:domainItemType","xbrli:item",0,"duration","true","2018-07-18",null,null,false,false]
[87,"in-capmkt","OtherNonInstitutionsMember","nonnum:domainItemType","xbrli:item",0,"duration","true","2018-07-18",null,null,false,false]
[88,"in-capmkt","OtherNonInstitutions1Member","nonnum:domainItemType","xbrli:item",0,"duration","true","2018-07-18",null,null,false,false]
[89,"in-capmkt","OtherNonInstitutions2Member","nonnum:domainItemType","xbrli:item",0,"duration","true","2018-07-18",null,null,false,false]
[90,"in-capmkt","OtherNonInstitutions3Member","nonnum:domainItemType","xbrli:item",0,"duration","true","2018-07-18",null,null,false,false]
[91,"in-capmkt","OtherNonInstitutions4Member","nonnum:domainItemType","xbrli:item",0,"duration","true","2018-07-18",null,null,false,false]
[92,"in-capmkt","OtherNonInstitutions5Member","nonnum:domainItemType","xbrli:item",0,"duration","true","2018-07-18",null,null,false,false]
[93,"in-capmkt","OtherNonInstitutions6Member","nonnum:domainItemType","xbrli:item",0,"duration","true","2018-07-18",null,null,false,false]
[94,"in-capmkt","OtherNonInstitutions7Member","nonnum:domainItemType","xbrli:item",0,"duration","true","2018-07-18",null,null,false,false]
[95,"in-capmkt","OtherNonInstitutions8Member","nonnum:domainItemType","xbrli:item",0,"duration","true","2018-07-18",null,null,false,false]
[96,"in-capmkt","OtherNonInstitutions9Member","nonnum:domainItemType","xbrli:item",0,"duration","true","2018-07-18",null,null,false,false]
[97,"in-capmkt","OtherNonInstitutions10Member","nonnum:domainItemType","xbrli:item",0,"duration","true","2018-07-18",null,null,false,false]
[98,"in-capmkt","OtherNonInstitutions11Member","nonnum:domainItemType","xbrli:item",0,"duration","true","2018-07-18",null,null,false,false]
[99,"in-capmkt","OtherNonInstitutions12Member","nonnum:domainItemType","xbrli:item",0,"duration","true","2018-07-18",null,null,false,false]
[100,"in-capmkt","OtherNonInstitutions13Member","nonnum:domainItemType","xbrli:item",0,"duration","true","2018-07-18",null,null,false,false]
[101,"in-capmkt","OtherNonInstitutions14Member","nonnum:domainItemType","xbrli:item",0,"duration","true","2018-07-18",null,null,false,false]
[102,"in-capmkt","OtherNonInstitutions15Member","nonnum:domainItemType","xbrli:item",0,"duration","true","2018-07-18",null,null,false,false]
[103,"in-capmkt","DisclosureOfUnitHoldingPatternLineItems","xbrli:stringItemType","xbrli:item",0,"duration","true","2018-07-18",null,null,false,false]
[104,"in-capmkt","NatureOfOther","xbrli:stringItemType","xbrli:item",0,"instant","false","2018-07-18",null,null,false,false]
[105,"in-capmkt","NumberOfUnitsHeld","xbrli:sharesItemType","xbrli:item",0,"instant","false","2018-07-18",null,null,false,false]
[106,"in-capmkt","AsAPercentageOfTotalOutStandingUnits","num:percentItemType","xbrli:item",0,"instant","false","2018-07-18",null,null,false,false]
[107,"in-capmkt","ISIN","in-capmkt-types:ISINNumber","xbrli:item",0,"instant","false","2018-07-18",null,null,false,false]
[108,"in-capmkt","ScoresRegistrationID","xbrli:stringItemType","xbrli:item",0,"instant","false","2018-07-18",null,null,false,false]
[109,"in-capmkt","ReasonInCaseScoreIDIsNotAvailable","xbrli:stringItemType","xbrli:item",0,"instant","false","2018-07-18",null,null,false,false]
[110,"in-capmkt","RemarksForInvestorGrievanceExplanatory","nonnum:textBlockItemType","xbrli:item",0,"instant","false","2018-07-18",null,null,false,false]
[111,"in-capmkt","InvestorGrievanceDetailsAbstract","xbrli:stringItemType","xbrli:item",0,"duration","true","2018-07-18",null,null,false,false]
[112,"in-capmkt","NumberOfInvestorComplaintsPending","xbrli:decimalItemType","xbrli:item",0,"instant","false","2018-07-18",null,null,false,false]
[113,"in-capmkt","NumberOfInvestorComplaintsReceivedDuringTheQuarter","xbrli:decimalItemType","xbrli:item",0,"duration","false","2018-07-18",null,null,false,false]
[114,"in-capmkt","NumberOfInvestorComplaintsDisposedOffDuringTheQuarter","xbrli:decimalItemType","xbrli:item",0,"duration","false","2018-07-18",null,null,false,false]
[115,"in-capmkt","TypeOfRegulation","in-capmkt-types:TypeRegulation","xbrli:item",0,"instant","false","2018-07-18",null,null,false,false]
[116,"in-capmkt","DisclosureOfRegulation7AndRegulation40Abstract","xbrli:stringItemType","xbrli:item",0,"duration","true","2018-07-18",null,null,false,false]
[117,"in-capmkt","Regulation4010Abstract","xbrli:stringItemType","xbrli:item",0,"duration","true","2018-07-18",null,null,false,false]
[118,"in-capmkt","DateOfCertificate","xbrli:dateItemType","xbrli:item",0,"instant","false","2018-07-18",null,null,false,false]
[119,"in-capmkt","NameOfCompanySecretary","xbrli:stringItemType","xbrli:item",0,"instant","false","2018-07-18",null,null,false,false]
[120,"in-capmkt","CertificateOfPracticeNumberOrFellowCompanySecretaryNumber","xbrli:stringItemType","xbrli:item",0,"instant","false","2018-07-18",null,null,false,false]
[121,"in-capmkt","RemarksForRegulation4010Explanatory","nonnum:textBlockItemType","xbrli:item",0,"instant","false","2018-07-18",null,null,false,false]
[122,"in-capmkt","Regulation73Abstract","xbrli:stringItemType","xbrli:item",0,"duration","true","2018-07-18",null,null,false,false]
[123,"in-capmkt","NameOfShareTransferAgent","xbrli:stringItemType","xbrli:item",0,"instant","false","2018-07-18",null,null,false,false]
[124,"in-capmkt","RemarksForRegulation73Explanatory","nonnum:textBlockItemType","xbrli:item",0,"instant","false","2018-07-18",null,null,false,false]
[125,"in-capmkt","DisclosureOfUnitHoldingPatternTableNotAll","xbrli:stringItemType","xbrldt:hypercubeItem",0,"duration","true","2018-07-18",null,null,false,false]
[126,"in-capmkt","OtherIndian16Member","nonnum:domainItemType","xbrli:item",0,"duration","true","2018-07-18",null,null,false,false]
[127,"in-capmkt","OtherIndian17Member","nonnum:domainItemType","xbrli:item",0,"duration","true","2018-07-18",null,null,false,false]
[128,"in-capmkt","OtherIndian18Member","nonnum:domainItemType","xbrli:item",0,"duration","true","2018-07-18",null,null,false,false]
[129,"in-capmkt","OtherIndian19Member","nonnum:domainItemType","xbrli:item",0,"duration","true","2018-07-18",null,null,false,false]
[130,"in-capmkt","OtherIndian20Member","nonnum:domainItemType","xbrli:item",0,"duration","true","2018-07-18",null,null,false,false]
[131,"in-capmkt","OtherIndian21Member","nonnum:domainItemType","xbrli:item",0,"duration","true","2018-07-18",null,null,false,false]
[132,"in-capmkt","OtherIndian22Member","nonnum:domainItemType","xbrli:item",0,"duration","true","2018-07-18",null,null,false,false]
[133,"in-capmkt","OtherIndian23Member","nonnum:domainItemType","xbrli:item",0,"duration","true","2018-07-18",null,null,false,false]
[134,"in-capmkt","OtherIndian24Member","nonnum:domainItemType","xbrli:item",0,"duration","true","2018-07-18",null,null,false,false]
[135,"in-capmkt","OtherIndian25Member","nonnum:domainItemType","xbrli:item",0,"duration","true","2018-07-18",null,null,false,false]
[136,"in-capmkt","OtherIndian26Member","nonnum:domainItemType","xbrli:item",0,"duration","true","2018-07-18",null,null,false,false]
[137,"in-capmkt","OtherIndian27Member","nonnum:domainItemType","xbrli:item",0,"duration","true","2018-07-18",null,null,false,false]
[138,"in-capmkt","OtherIndian28Member","nonnum:domainItemType","xbrli:item",0,"duration","true","2018-07-18",null,null,false,false]
[139,"in-capmkt","OtherIndian29Member","nonnum:domainItemType","xbrli:item",0,"duration","true","2018-07-18",null,null,false,false]
[140,"in-capmkt","OtherIndian30Member","nonnum:domainItemType","xbrli:item",0,"duration","true","2018-07-18",null,null,false,false]
[141,"in-capmkt","OtherIndian31Member","nonnum:domainItemType","xbrli:item",0,"duration","true","2018-07-18",null,null,false,false]
[142,"in-capmkt","OtherIndian32Member","nonnum:domainItemType","xbrli:item",0,"duration","true","2018-07-18",null,null,false,false]
[143,"in-capmkt","OtherIndian33Member","nonnum:domainItemType","xbrli:item",0,"duration","true","2018-07-18",null,null,false,false]
[144,"in-capmkt","OtherIndian34Member","nonnum:domainItemType","xbrli:item",0,"duration","true","2018-07-18",null,null,false,false]
[145,"in-capmkt","OtherIndian35Member","nonnum:domainItemType","xbrli:item",0,"duration","true","2018-07-18",null,null,false,false]
[146,"in-capmkt","OtherIndian36Member","nonnum:domainItemType","xbrli:item",0,"duration","true","2018-07-18",null,null,false,false]
[147,"in-capmkt","OtherIndian37Member","nonnum:domainItemType","xbrli:item",0,"duration","true","2018-07-18",null,null,false,false]
[148,"in-capmkt","OtherIndian38Member","nonnum:domainItemType","xbrli:item",0,"duration","true","2018-07-18",null,null,false,false]
[149,"in-capmkt","OtherIndian39Member","nonnum:domainItemType","xbrli:item",0,"duration","true","2018-07-18",null,null,false,false]
[150,"in-capmkt","OtherIndian40Member","nonnum:domainItemType","xbrli:item",0,"duration","true","2018-07-18",null,null,false,false]
[151,"in-capmkt","OtherIndian41Member","nonnum:domainItemType","xbrli:item",0,"duration","true","2018-07-18",null,null,false,false]
[152,"in-capmkt","OtherIndian42Member","nonnum:domainItemType","xbrli:item",0,"duration","true","2018-07-18",null,null,false,false]
[153,"in-capmkt","OtherIndian43Member","nonnum:domainItemType","xbrli:item",0,"duration","true","2018-07-18",null,null,false,false]
[154,"in-capmkt","OtherIndian44Member","nonnum:domainItemType","xbrli:item",0,"duration","true","2018-07-18",null,null,false,false]
[155,"in-capmkt","OtherIndian45Member","nonnum:domainItemType","xbrli:item",0,"duration","true","2018-07-18",null,null,false,false]
[156,"in-capmkt","OtherIndian46Member","nonnum:domainItemType","xbrli:item",0,"duration","true","2018-07-18",null,null,false,false]
[157,"in-capmkt","OtherIndian47Member","nonnum:domainItemType","xbrli:item",0,"duration","true","2018-07-18",null,null,false,false]
[158,"in-capmkt","OtherIndian48Member","nonnum:domainItemType","xbrli:item",0,"duration","true","2018-07-18",null,null,false,false]
[159,"in-capmkt","OtherIndian49Member","nonnum:domainItemType","xbrli:item",0,"duration","true","2018-07-18",null,null,false,false]
[160,"in-capmkt","OtherIndian50Member","nonnum:domainItemType","xbrli:item",0,"duration","true","2018-07-18",null,null,false,false]
[161,"in-capmkt","OtherForeign16Member","nonnum:domainItemType","xbrli:item",0,"duration","true","2018-07-18",null,null,false,false]
[162,"in-capmkt","OtherForeign17Member","nonnum:domainItemType","xbrli:item",0,"duration","true","2018-07-18",null,null,false,false]
[163,"in-capmkt","OtherForeign18Member","nonnum:domainItemType","xbrli:item",0,"duration","true","2018-07-18",null,null,false,false]
[164,"in-capmkt","OtherForeign19Member","nonnum:domainItemType","xbrli:item",0,"duration","true","2018-07-18",null,null,false,false]
[165,"in-capmkt","OtherForeign20Member","nonnum:domainItemType","xbrli:item",0,"duration","true","2018-07-18",null,null,false,false]
[166,"in-capmkt","OtherForeign21Member","nonnum:domainItemType","xbrli:item",0,"duration","true","2018-07-18",null,null,false,false]
[167,"in-capmkt","OtherForeign22Member","nonnum:domainItemType","xbrli:item",0,"duration","true","2018-07-18",null,null,false,false]
[168,"in-capmkt","OtherForeign23Member","nonnum:domainItemType","xbrli:item",0,"duration","true","2018-07-18",null,null,false,false]
[169,"in-capmkt","OtherForeign24Member","nonnum:domainItemType","xbrli:item",0,"duration","true","2018-07-18",null,null,false,false]
[170,"in-capmkt","OtherForeign25Member","nonnum:domainItemType","xbrli:item",0,"duration","true","2018-07-18",null,null,false,false]
[171,"in-capmkt","OtherForeign26Member","nonnum:domainItemType","xbrli:item",0,"duration","true","2018-07-18",null,null,false,false]
[172,"in-capmkt","OtherForeign27Member","nonnum:domainItemType","xbrli:item",0,"duration","true","2018-07-18",null,null,false,false]
[173,"in-capmkt","OtherForeign28Member","nonnum:domainItemType","xbrli:item",0,"duration","true","2018-07-18",null,null,false,false]
[174,"in-capmkt","OtherForeign29Member","nonnum:domainItemType","xbrli:item",0,"duration","true","2018-07-18",null,null,false,false]
[175,"in-capmkt","OtherForeign30Member","nonnum:domainItemType","xbrli:item",0,"duration","true","2018-07-18",null,null,false,false]
[176,"in-capmkt","OtherForeign31Member","nonnum:domainItemType","xbrli:item",0,"duration","true","2018-07-18",null,null,false,false]
[177,"in-capmkt","OtherForeign32Member","nonnum:domainItemType","xbrli:item",0,"duration","true","2018-07-18",null,null,false,false]
[178,"in-capmkt","OtherForeign33Member","nonnum:domainItemType","xbrli:item",0,"duration","true","2018-07-18",null,null,false,false]
[179,"in-capmkt","OtherForeign34Member","nonnum:domainItemType","xbrli:item",0,"duration","true","2018-07-18",null,null,false,false]
[180,"in-capmkt","OtherForeign35Member","nonnum:domainItemType","xbrli:item",0,"duration","true","2018-07-18",null,null,false,false]
[181,"in-capmkt","OtherForeign36Member","nonnum:domainItemType","xbrli:item",0,"duration","true","2018-07-18",null,null,false,false]
[182,"in-capmkt","OtherForeign37Member","nonnum:domainItemType","xbrli:item",0,"duration","true","2018-07-18",null,null,false,false]
[183,"in-capmkt","OtherForeign38Member","nonnum:domainItemType","xbrli:item",0,"duration","true","2018-07-18",null,null,false,false]
[184,"in-capmkt","OtherForeign39Member","nonnum:domainItemType","xbrli:item",0,"duration","true","2018-07-18",null,null,false,false]
[185,"in-capmkt","OtherForeign40Member","nonnum:domainItemType","xbrli:item",0,"duration","true","2018-07-18",null,null,false,false]
[186,"in-capmkt","OtherForeign41Member","nonnum:domainItemType","xbrli:item",0,"duration","true","2018-07-18",null,null,false,false]
[187,"in-capmkt","OtherForeign42Member","nonnum:domainItemType","xbrli:item",0,"duration","true","2018-07-18",null,null,false,false]
[188,"in-capmkt","OtherForeign43Member","nonnum:domainItemType","xbrli:item",0,"duration","true","2018-07-18",null,null,false,false]
[189,"in-capmkt","OtherForeign44Member","nonnum:domainItemType","xbrli:item",0,"duration","true","2018-07-18",null,null,false,false]
[190,"in-capmkt","OtherForeign45Member","nonnum:domainItemType","xbrli:item",0,"duration","true","2018-07-18",null,null,false,false]
[191,"in-capmkt","OtherForeign46Member","nonnum:domainItemType","xbrli:item",0,"duration","true","2018-07-18",null,null,false,false]
[192,"in-capmkt","OtherForeign47Member","nonnum:domainItemType","xbrli:item",0,"duration","true","2018-07-18",null,null,false,false]
[193,"in-capmkt","OtherForeign48Member","nonnum:domainItemType","xbrli:item",0,"duration","true","2018-07-18",null,null,false,false]
[194,"in-capmkt","OtherForeign49Member","nonnum:domainItemType","xbrli:item",0,"duration","true","2018-07-18",null,null,false,false]
[195,"in-capmkt","OtherForeign50Member","nonnum:domainItemType","xbrli:item",0,"duration","true","2018-07-18",null,null,false,false]
[196,"in-capmkt","OtherInstitutions16Member","nonnum:domainItemType","xbrli:item",0,"duration","true","2018-07-18",null,null,false,false]
[197,"in-capmkt","OtherInstitutions17Member","nonnum:domainItemType","xbrli:item",0,"duration","true","2018-07-18",null,null,false,false]
[198,"in-capmkt","OtherInstitutions18Member","nonnum:domainItemType","xbrli:item",0,"duration","true","2018-07-18",null,null,false,false]
[199,"in-capmkt","OtherInstitutions19Member","nonnum:domainItemType","xbrli:item",0,"duration","true","2018-07-18",null,null,false,false]
[200,"in-capmkt","OtherInstitutions20Member","nonnum:domainItemType","xbrli:item",0,"duration","true","2018-07-18",null,null,false,false]
[201,"in-capmkt","OtherInstitutions21Member","nonnum:domainItemType","xbrli:item",0,"duration","true","2018-07-18",null,null,false,false]
[202,"in-capmkt","OtherInstitutions22Member","nonnum:domainItemType","xbrli:item",0,"duration","true","2018-07-18",null,null,false,false]
[203,"in-capmkt","OtherInstitutions23Member","nonnum:domainItemType","xbrli:item",0,"duration","true","2018-07-18",null,null,false,false]
[204,"in-capmkt","OtherInstitutions24Member","nonnum:domainItemType","xbrli:item",0,"duration","true","2018-07-18",null,null,false,false]
[205,"in-capmkt","OtherInstitutions25Member","nonnum:domainItemType","xbrli:item",0,"duration","true","2018-07-18",null,null,false,false]
[206,"in-capmkt","OtherInstitutions26Member","nonnum:domainItemType","xbrli:item",0,"duration","true","2018-07-18",null,null,false,false]
[207,"in-capmkt","OtherInstitutions27Member","nonnum:domainItemType","xbrli:item",0,"duration","true","2018-07-18",null,null,false,false]
[208,"in-capmkt","OtherInstitutions28Member","nonnum:domainItemType","xbrli:item",0,"duration","true","2018-07-18",null,null,false,false]
[209,"in-capmkt","OtherInstitutions29Member","nonnum:domainItemType","xbrli:item",0,"duration","true","2018-07-18",null,null,false,false]
[210,"in-capmkt","OtherInstitutions30Member","nonnum:domainItemType","xbrli:item",0,"duration","true","2018-07-18",null,null,false,false]
[211,"in-capmkt","OtherInstitutions31Member","nonnum:domainItemType","xbrli:item",0,"duration","true","2018-07-18",null,null,false,false]
[212,"in-capmkt","OtherInstitutions32Member","nonnum:domainItemType","xbrli:item",0,"duration","true","2018-07-18",null,null,false,false]
[213,"in-capmkt","OtherInstitutions33Member","nonnum:domainItemType","xbrli:item",0,"duration","true","2018-07-18",null,null,false,false]
[214,"in-capmkt","OtherInstitutions34Member","nonnum:domainItemType","xbrli:item",0,"duration","true","2018-07-18",null,null,false,false]
[215,"in-capmkt","OtherInstitutions35Member","nonnum:domainItemType","xbrli:item",0,"duration","true","2018-07-18",null,null,false,false]
[216,"in-capmkt","OtherInstitutions36Member","nonnum:domainItemType","xbrli:item",0,"duration","true","2018-07-18",null,null,false,false]
[217,"in-capmkt","OtherInstitutions37Member","nonnum:domainItemType","xbrli:item",0,"duration","true","2018-07-18",null,null,false,false]
[218,"in-capmkt","OtherInstitutions38Member","nonnum:domainItemType","xbrli:item",0,"duration","true","2018-07-18",null,null,false,false]
[219,"in-capmkt","OtherInstitutions39Member","nonnum:domainItemType","xbrli:item",0,"duration","true","2018-07-18",null,null,false,false]
[220,"in-capmkt","OtherInstitutions40Member","nonnum:domainItemType","xbrli:item",0,"duration","true","2018-07-18",null,null,false,false]
[221,"in-capmkt","OtherInstitutions41Member","nonnum:domainItemType","xbrli:item",0,"duration","true","2018-07-18",null,null,false,false]
[222,"in-capmkt","OtherInstitutions42Member","nonnum:domainItemType","xbrli:item",0,"duration","true","2018-07-18",null,null,false,false]
[223,"in-capmkt","OtherInstitutions43Member","nonnum:domainItemType","xbrli:item",0,"duration","true","2018-07-18",null,null,false,false]
[224,"in-capmkt","OtherInstitutions44Member","nonnum:domainItemType","xbrli:item",0,"duration","true","2018-07-18",null,null,false,false]
[225,"in-capmkt","OtherInstitutions45Member","nonnum:domainItemType","xbrli:item",0,"duration","true","2018-07-18",null,null,false,false]
[226,"in-capmkt","OtherInstitutions46Member","nonnum:domainItemType","xbrli:item",0,"duration","true","2018-07-18",null,null,false,false]
[227,"in-capmkt","OtherInstitutions47Member","nonnum:domainItemType","xbrli:item",0,"duration","true","2018-07-18",null,null,false,false]
[228,"in-capmkt","OtherInstitutions48Member","nonnum:domainItemType","xbrli:item",0,"duration","true","2018-07-18",null,null,false,false]
[229,"in-capmkt","OtherInstitutions49Member","nonnum:domainItemType","xbrli:item",0,"duration","true","2018-07-18",null,null,false,false]
[230,"in-capmkt","OtherInstitutions50Member","nonnum:domainItemType","xbrli:item",0,"duration","true","2018-07-18",null,null,false,false]
[231,"in-capmkt","OtherNonInstitutions16Member","nonnum:domainItemType","xbrli:item",0,"duration","true","2018-07-18",null,null,false,false]
[232,"in-capmkt","OtherNonInstitutions17Member","nonnum:domainItemType","xbrli:item",0,"duration","true","2018-07-18",null,null,false,false]
[233,"in-capmkt","OtherNonInstitutions18Member","nonnum:domainItemType","xbrli:item",0,"duration","true","2018-07-18",null,null,false,false]
[234,"in-capmkt","OtherNonInstitutions19Member","nonnum:domainItemType","xbrli:item",0,"duration","true","2018-07-18",null,null,false,false]
[235,"in-capmkt","OtherNonInstitutions20Member","nonnum:domainItemType","xbrli:item",0,"duration","true","2018-07-18",null,null,false,false]
[236,"in-capmkt","OtherNonInstitutions21Member","nonnum:domainItemType","xbrli:item",0,"duration","true","2018-07-18",null,null,false,false]
[237,"in-capmkt","OtherNonInstitutions22Member","nonnum:domainItemType","xbrli:item",0,"duration","true","2018-07-18",null,null,false,false]
[238,"in-capmkt","OtherNonInstitutions23Member","nonnum:domainItemType","xbrli:item",0,"duration","true","2018-07-18",null,null,false,false]
[239,"in-capmkt","OtherNonInstitutions24Member","nonnum:domainItemType","xbrli:item",0,"duration","true","2018-07-18",null,null,false,false]
[240,"in-capmkt","OtherNonInstitutions25Member","nonnum:domainItemType","xbrli:item",0,"duration","true","2018-07-18",null,null,false,false]
[241,"in-capmkt","OtherNonInstitutions26Member","nonnum:domainItemType","xbrli:item",0,"duration","true","2018-07-18",null,null,false,false]
[242,"in-capmkt","OtherNonInstitutions27Member","nonnum:domainItemType","xbrli:item",0,"duration","true","2018-07-18",null,null,false,false]
[243,"in-capmkt","OtherNonInstitutions28Member","nonnum:domainItemType","xbrli:item",0,"duration","true","2018-07-18",null,null,false,false]
[244,"in-capmkt","OtherNonInstitutions29Member","nonnum:domainItemType","xbrli:item",0,"duration","true","2018-07-18",null,null,false,false]
[245,"in-capmkt","OtherNonInstitutions30Member","nonnum:domainItemType","xbrli:item",0,"duration","true","2018-07-18",null,null,false,false]
[246,"in-capmkt","OtherNonInstitutions31Member","nonnum:domainItemType","xbrli:item",0,"duration","true","2018-07-18",null,null,false,false]
[247,"in-capmkt","OtherNonInstitutions32Member","nonnum:domainItemType","xbrli:item",0,"duration","true","2018-07-18",null,null,false,false]
[248,"in-capmkt","OtherNonInstitutions33Member","nonnum:domainItemType","xbrli:item",0,"duration","true","2018-07-18",null,null,false,false]
[249,"in-capmkt","OtherNonInstitutions34Member","nonnum:domainItemType","xbrli:item",0,"duration","true","2018-07-18",null,null,false,false]
[250,"in-capmkt","OtherNonInstitutions35Member","nonnum:domainItemType","xbrli:item",0,"duration","true","2018-07-18",null,null,false,false]
[251,"in-capmkt","OtherNonInstitutions36Member","nonnum:domainItemType","xbrli:item",0,"duration","true","2018-07-18",null,null,false,false]
[252,"in-capmkt","OtherNonInstitutions37Member","nonnum:domainItemType","xbrli:item",0,"duration","true","2018-07-18",null,null,false,false]
[253,"in-capmkt","OtherNonInstitutions38Member","nonnum:domainItemType","xbrli:item",0,"duration","true","2018-07-18",null,null,false,false]
[254,"in-capmkt","OtherNonInstitutions39Member","nonnum:domainItemType","xbrli:item",0,"duration","true","2018-07-18",null,null,false,false]
[255,"in-capmkt","OtherNonInstitutions40Member","nonnum:domainItemType","xbrli:item",0,"duration","true","2018-07-18",null,null,false,false]
[256,"in-capmkt","OtherNonInstitutions41Member","nonnum:domainItemType","xbrli:item",0,"duration","true","2018-07-18",null,null,false,false]
[257,"in-capmkt","OtherNonInstitutions42Member","nonnum:domainItemType","xbrli:item",0,"duration","true","2018-07-18",null,null,false,false]
[258,"in-capmkt","OtherNonInstitutions43Member","nonnum:domainItemType","xbrli:item",0,"duration","true","2018-07-18",null,null,false,false]
[259,"in-capmkt","OtherNonInstitutions44Member","nonnum:domainItemType","xbrli:item",0,"duration","true","2018-07-18",null,null,false,false]
[260,"in-capmkt","OtherNonInstitutions45Member","nonnum:domainItemType","xbrli:item",0,"duration","true","2018-07-18",null,null,false,false]
[261,"in-capmkt","OtherNonInstitutions46Member","nonnum:domainItemType","xbrli:item",0,"duration","true","2018-07-18",null,null,false,false]
[262,"in-capmkt","OtherNonInstitutions47Member","nonnum:domainItemType","xbrli:item",0,"duration","true","2018-07-18",null,null,false,false]
[263,"in-capmkt","OtherNonInstitutions48Member","nonnum:domainItemType","xbrli:item",0,"duration","true","2018-07-18",null,null,false,false]
[264,"in-capmkt","OtherNonInstitutions49Member","nonnum:domainItemType","xbrli:item",0,"duration","true","2018-07-18",null,null,false,false]
[265,"in-capmkt","OtherNonInstitutions50Member","nonnum:domainItemType","xbrli:item",0,"duration","true","2018-07-18",null,null,false,false]
[266,"in-capmkt","BSEScripCode","in-capmkt-types:ScripCode","xbrli:item",0,"instant","false","2018-07-18",null,null,false,false]
[267,"in-capmkt","MSEISymbol","xbrli:stringItemType","xbrli:item",0,"instant","false","2018-07-18",null,null,false,false]
[268,"in-capmkt","DetailsOfChangeInHoldingOfSecuritiesOfPromotersEmployeeOrDirectorOfAListedCompanyAndOtherSuchPersonsAbstract","xbrli:stringItemType","xbrli:item",0,"duration","true","2018-07-18",null,null,false,false]
[269,"in-capmkt","DetailsOfChangeInHoldingOfSecuritiesOfPromotersEmployeeOrDirectorOfAListedCompanyAndOtherSuchPersonsTable","xbrli:stringItemType","xbrldt:hypercubeItem",0,"duration","true","2018-07-18",null,null,false,false]
[270,"in-capmkt","ChangeInHoldingOfSecuritiesOfPromotersAxis","xbrli:stringItemType","xbrldt:dimensionItem",0,"duration","true","2018-07-18",null,null,false,false]
[271,"in-capmkt","DetailsOfChangeInHoldingOfSecuritiesOfPromotersEmployeeOrDirectorOfAListedCompanyAndOtherSuchPersonsLineItems","xbrli:stringItemType","xbrli:item",0,"duration","true","2018-07-18",null,null,false,false]
[272,"in-capmkt","TypeOfInstrument","in-capmkt-types:TypeOfInstrument","xbrli:item",0,"instant","false","2018-07-18",null,null,false,false]
[273,"in-capmkt","CategoryOfPerson","in-capmkt-types:CategoryOfPerson","xbrli:item",0,"instant","false","2018-07-18",null,null,false,false]
[274,"in-capmkt","NameOfThePerson","xbrli:stringItemType","xbrli:item",0,"instant","false","2018-07-18",null,null,false,false]
[275,"in-capmkt","PANNumber","in-capmkt-types:PANNumber","xbrli:item",0,"instant","false","2018-07-18",null,null,false,false]
[276,"in-capmkt","IdentificationNumberOfDirectorOrCompany","xbrli:stringItemType","xbrli:item",0,"instant","false","2018-07-18",null,null,false,false]
[277,"in-capmkt","Address","xbrli:stringItemType","xbrli:item",0,"instant","false","2018-07-18",null,null,false,false]
[278,"in-capmkt","SecuritiesHeldPriorToAcquisitionOrDisposalAbstract","xbrli:stringItemType","xbrli:item",0,"duration","true","2018-07-18",null,null,false,false]
[279,"in-capmkt","SecuritiesHeldPriorToAcquisitionOrDisposalNumberOfSecurity","xbrli:sharesItemType","xbrli:item",0,"instant","false","2018-07-18",null,null,false,false]
[280,"in-capmkt","SecuritiesHeldPriorToAcquisitionOrDisposalPercentageOfShareholding","num:percentItemType","xbrli:item",0,"instant","false","2018-07-18",null,null,false,false]
[281,"in-capmkt","SecuritiesAcquiredOrDisposedAbstract","xbrli:stringItemType","xbrli:item",0,"duration","true","2018-07-18",null,null,false,false]
[282,"in-capmkt","SecuritiesAcquiredOrDisposedNumberOfSecurity","xbrli:sharesItemType","xbrli:item",0,"instant","false","2018-07-18",null,null,false,false]
[283,"in-capmkt","SecuritiesAcquiredOrDisposedValueOfSecurity","xbrli:sharesItemType","xbrli:item",0,"instant","false","2018-07-18",null,null,false,false]
[284,"in-capmkt","SecuritiesAcquiredOrDisposedTransactionType","in-capmkt-types:AcquisitionOrDisposal","xbrli:item",0,"instant","false","2018-07-18",null,null,false,false]
[285,"in-capmkt","SecuritiesHeldPostAcquistionOrDisposalAbstract","xbrli:stringItemType","xbrli:item",0,"duration","true","2018-07-18",null,null,false,false]
[286,"in-capmkt","SecuritiesHeldPostAcquistionOrDisposalNumberOfSecurity","xbrli:sharesItemType","xbrli:item",0,"instant","false","2018-07-18",null,null,false,false]
[287,"in-capmkt","SecuritiesHeldPostAcquistionOrDisposalPercentageOfShareholding","num:percentItemType","xbrli:item",0,"instant","false","2018-07-18",null,null,false,false]
[288,"in-capmkt","DateOfAllotmentAdviceOrAcquisitionOfSharesOrSaleOfSharesSpecifyAbstract","xbrli:stringItemType","xbrli:item",0,"duration","true","2018-07-18",null,null,false,false]
[289,"in-capmkt","DateOfAllotmentAdviceOrAcquisitionOfSharesOrSaleOfSharesSpecifyFromDate","xbrli:dateItemType","xbrli:item",0,"instant","false","2018-07-18",null,null,false,false]
[290,"in-capmkt","DateOfAllotmentAdviceOrAcquisitionOfSharesOrSaleOfSharesSpecifyToDate","xbrli:dateItemType","xbrli:item",0,"instant","false","2018-07-18",null,null,false,false]
[291,"in-capmkt","DateOfIntimationToCompany","xbrli:dateItemType","xbrli:item",0,"instant","false","2018-07-18",null,null,false,false]
[292,"in-capmkt","TypeOfContract","in-capmkt-types:TypeOfContract","xbrli:item",0,"instant","false","2018-07-18",null,null,false,false]
[293,"in-capmkt","ContractSpecification","xbrli:stringItemType","xbrli:item",0,"instant","false","2018-07-18",null,null,false,false]
[294,"in-capmkt","BuyAbstract","xbrli:stringItemType","xbrli:item",0,"duration","true","2018-07-18",null,null,false,false]
[295,"in-capmkt","BuyNotionalValue","xbrli:monetaryItemType","xbrli:item",0,"instant","false","2018-07-18",null,null,false,false]
[296,"in-capmkt","BuyNumberOfUnits","xbrli:sharesItemType","xbrli:item",0,"instant","false","2018-07-18",null,null,false,false]
[297,"in-capmkt","SellAbstract","xbrli:stringItemType","xbrli:item",0,"duration","true","2018-07-18",null,null,false,false]
[298,"in-capmkt","NotionalValue","xbrli:monetaryItemType","xbrli:item",0,"instant","false","2018-07-18",null,null,false,false]
[299,"in-capmkt","NumberOfUnits","xbrli:sharesItemType","xbrli:item",0,"instant","false","2018-07-18",null,null,false,false]
[300,"in-capmkt","ExchangeOnWhichTheTradeWasExecuted","in-capmkt-types:ExchangeTrade","xbrli:item",0,"instant","false","2018-07-18",null,null,false,false]
[301,"in-capmkt","ValueInAggregate","xbrli:monetaryItemType","xbrli:item",0,"instant","false","2018-07-18",null,null,false,false]
[302,"in-capmkt","ModeOfAcquisitionOrDisposal","in-capmkt-types:ModeOfAcquisitionOrDisposal","xbrli:item",0,"instant","false","2018-07-18",null,null,false,false]
[303,"in-capmkt","RegulationOfInsiderTrading","in-capmkt-types:RegulationOfInsiderTrading","xbrli:item",0,"instant","false","2018-07-18",null,null,false,false]
[304,"in-capmkt","TradingInSecuritiesByOtherConnectedPersonsAxis","xbrli:stringItemType","xbrldt:dimensionItem",0,"duration","true","2018-07-18",null,null,false,false]
[305,"in-capmkt","ConnectionWithTheCompany","xbrli:stringItemType","xbrli:item",0,"instant","false","2018-07-18",null,null,false,false]
[306,"in-capmkt","DetailsOfTradingInSecuritiesByOtherConnectedPersonsAsIdentifiedByTheCompanyAbstract","xbrli:stringItemType","xbrli:item",0,"duration","true","2018-07-18",null,null,false,false]
[307,"in-capmkt","DetailsOfTradingInSecuritiesByOtherConnectedPersonsAsIdentifiedByTheCompanyTable","xbrli:stringItemType","xbrldt:hypercubeItem",0,"duration","true","2018-07-18",null,null,false,false]
[308,"in-capmkt","DetailsOfTradingInSecuritiesByOtherConnectedPersonsAsIdentifiedByTheCompanyLineItems","xbrli:stringItemType","xbrli:item",0,"duration","true","2018-07-18",null,null,false,false]

{"sheet":"MemberMaster","index":9,"n_rows":234,"n_cols":3,"rows_kept":234,"cut":false,"hidden":true,"merged":[]}
["ID","Label","ElementName"]
[1,"Individuals or HUF","IndividualsOrHUFMember"]
[2,"Central government or state government","CentralGovernmentOrStateGovernmentMember"]
[3,"Financial institutions banks","FinancialInstitutionsBanksMember"]
[4,"Other Indian unit holding","OtherIndianMember"]
[5,"Total Indian Unit Holding Sub- Total (A) (1)","IndianMember"]
[6,"Individuals (non-resident Indians or foreign individuals)","IndividualsNonResidentIndiansOrForeignIndividualsMember"]
[7,"Foreign government","ForeignGovernmentMember"]
[8,"Institutions","InstitutionMember"]
[9,"Foreign portfolio investors","ForeignPortfolioInvestorsMember"]
[10,"Other foreign unit holding","OtherForeignMember"]
[11,"Total Foreign unit holding sub - Total (A) (2)","ForeignMember"]
[12,"Total unit holding of Sponsor & Sponsor Group (A) = (A)(1)+(A)(2)","UnitHoldingOfSponsorAndSponsorGroupMember"]
[13,"Mutual funds","MutualFundsInstitutionsMember"]
[14,"Financial institutions or banks","FinancialInstitutionsOrBanksInstitutionsMember"]
[15,"Central government Or state government","CentralGovernmentOrStateGovernmentsMember"]
[16,"Venture capital funds","VentureCapitalFundsInstitutionsMember"]
[17,"Insurance companies","InsuranceCompaniesInstitutionsMember"]
[18,"Provident or pension funds","ProvidentOrPensionFundsInstitutionsMember"]
[19,"Foreign portfolio investors","ForeignPortfolioInvestorsInstitutionsMember"]
[20,"Foreign venture capital investors","ForeignVentureCapitalInvestorsInstitutionsMember"]
[21,"Other institutions Unit Holding","OtherInstitutionsMember"]
[22,"Total institutions unit holding  Sub- Total (B) (1)","InstitutionsMember"]
[23,"Central government or state governments or president of India","CentralGovernmentOrStateGovernmentsOrPresidentOfIndiaNonInstitutionsMember"]
[24,"Individuals","IndividualsNonInstitutionsMember"]
[25,"NBFCs registered with RBI","NBFCsRegisteredWithRBINonInstitutionsMember"]
[26,"Other non-institutions unit holding","OtherNonInstitutionsMember"]
[27,"Total non-Institutions Sub- Total (B) (2)","NonInstitutionsMember"]
[28,"Total Public Unit holding (B) = (B)(1)+(B)(2)","PublicHoldingMember"]
[29,"Total Units Outstanding (C) = (A) + (B)","TotalUnitsOutstandingMember"]
[30,"Other Indian 1 [Member]","OtherIndian1Member"]
[31,"Other Indian 2 [Member]","OtherIndian2Member"]
[32,"Other Indian 3 [Member]","OtherIndian3Member"]
[33,"Other Indian 4 [Member]","OtherIndian4Member"]
[34,"Other Indian 5 [Member]","OtherIndian5Member"]
[35,"Other Indian 6 [Member]","OtherIndian6Member"]
[36,"Other Indian 7 [Member]","OtherIndian7Member"]
[37,"Other Indian 8 [Member]","OtherIndian8Member"]
[38,"Other Indian 9 [Member]","OtherIndian9Member"]
[39,"Other Indian 10 [Member]","OtherIndian10Member"]
[40,"Other Indian 11 [Member]","OtherIndian11Member"]
[41,"Other Indian 12 [Member]","OtherIndian12Member"]
[42,"Other Indian 13 [Member]","OtherIndian13Member"]
[43,"Other Indian 14 [Member]","OtherIndian14Member"]
[44,"Other Indian 15 [Member]","OtherIndian15Member"]
[45,"Other Indian 16 [Member]","OtherIndian16Member"]
[46,"Other Indian 17 [Member]","OtherIndian17Member"]
[47,"Other Indian 18 [Member]","OtherIndian18Member"]
[48,"Other Indian 19 [Member]","OtherIndian19Member"]
[49,"Other Indian 20 [Member]","OtherIndian20Member"]
[50,"Other Indian 21 [Member]","OtherIndian21Member"]
[51,"Other Indian 22 [Member]","OtherIndian22Member"]
[52,"Other Indian 23 [Member]","OtherIndian23Member"]
[53,"Other Indian 24 [Member]","OtherIndian24Member"]
[54,"Other Indian 25 [Member]","OtherIndian25Member"]
[55,"Other Indian 26 [Member]","OtherIndian26Member"]
[56,"Other Indian 27 [Member]","OtherIndian27Member"]
[57,"Other Indian 28 [Member]","OtherIndian28Member"]
[58,"Other Indian 29 [Member]","OtherIndian29Member"]
[59,"Other Indian 30 [Member]","OtherIndian30Member"]
[60,"Other Indian 31 [Member]","OtherIndian31Member"]
[61,"Other Indian 32 [Member]","OtherIndian32Member"]
[62,"Other Indian 33 [Member]","OtherIndian33Member"]
[63,"Other Indian 34 [Member]","OtherIndian34Member"]
[64,"Other Indian 35 [Member]","OtherIndian35Member"]
[65,"Other Indian 36 [Member]","OtherIndian36Member"]
[66,"Other Indian 37 [Member]","OtherIndian37Member"]
[67,"Other Indian 38 [Member]","OtherIndian38Member"]
[68,"Other Indian 39 [Member]","OtherIndian39Member"]
[69,"Other Indian 40 [Member]","OtherIndian40Member"]
[70,"Other Indian 41 [Member]","OtherIndian41Member"]
[71,"Other Indian 42 [Member]","OtherIndian42Member"]
[72,"Other Indian 43 [Member]","OtherIndian43Member"]
[73,"Other Indian 44 [Member]","OtherIndian44Member"]
[74,"Other Indian 45 [Member]","OtherIndian45Member"]
[75,"Other Indian 46 [Member]","OtherIndian46Member"]
[76,"Other Indian 47 [Member]","OtherIndian47Member"]
[77,"Other Indian 48 [Member]","OtherIndian48Member"]
[78,"Other Indian 49 [Member]","OtherIndian49Member"]
[79,"Other Indian 50 [Member]","OtherIndian50Member"]
[80,"Total other Indian unit holding","OtherIndianMember"]
[81,"Other foreign 1 [Member]","OtherForeign1Member"]
[82,"Other foreign 2 [Member]","OtherForeign2Member"]
[83,"Other foreign 3 [Member]","OtherForeign3Member"]
[84,"Other foreign 4 [Member]","OtherForeign4Member"]
[85,"Other foreign 5 [Member]","OtherForeign5Member"]
[86,"Other foreign 6 [Member]","OtherForeign6Member"]
[87,"Other foreign 7 [Member]","OtherForeign7Member"]
[88,"Other foreign 8 [Member]","OtherForeign8Member"]
[89,"Other foreign 9 [Member]","OtherForeign9Member"]
[90,"Other foreign 10 [Member]","OtherForeign10Member"]
[91,"Other foreign 11 [Member]","OtherForeign11Member"]
[92,"Other foreign 12 [Member]","OtherForeign12Member"]
[93,"Other foreign 13 [Member]","OtherForeign13Member"]
[94,"Other foreign 14 [Member]","OtherForeign14Member"]
[95,"Other foreign 15 [Member]","OtherForeign15Member"]
[96,"Other foreign 16 [Member]","OtherForeign16Member"]
[97,"Other foreign 17 [Member]","OtherForeign17Member"]
[98,"Other foreign 18 [Member]","OtherForeign18Member"]
[99,"Other foreign 19 [Member]","OtherForeign19Member"]
[100,"Other foreign 20 [Member]","OtherForeign20Member"]
[101,"Other foreign 21 [Member]","OtherForeign21Member"]
[102,"Other foreign 22 [Member]","OtherForeign22Member"]
[103,"Other foreign 23 [Member]","OtherForeign23Member"]
[104,"Other foreign 24 [Member]","OtherForeign24Member"]
[105,"Other foreign 25 [Member]","OtherForeign25Member"]
[106,"Other foreign 26 [Member]","OtherForeign26Member"]
[107,"Other foreign 27 [Member]","OtherForeign27Member"]
[108,"Other foreign 28 [Member]","OtherForeign28Member"]
[109,"Other foreign 29 [Member]","OtherForeign29Member"]
[110,"Other foreign 30 [Member]","OtherForeign30Member"]
[111,"Other foreign 31 [Member]","OtherForeign31Member"]
[112,"Other foreign 32 [Member]","OtherForeign32Member"]
[113,"Other foreign 33 [Member]","OtherForeign33Member"]
[114,"Other foreign 34 [Member]","OtherForeign34Member"]
[115,"Other foreign 35 [Member]","OtherForeign35Member"]
[116,"Other foreign 36 [Member]","OtherForeign36Member"]
[117,"Other foreign 37 [Member]","OtherForeign37Member"]
[118,"Other foreign 38 [Member]","OtherForeign38Member"]
[119,"Other foreign 39 [Member]","OtherForeign39Member"]
[120,"Other foreign 40 [Member]","OtherForeign40Member"]
[121,"Other foreign 41 [Member]","OtherForeign41Member"]
[122,"Other foreign 42 [Member]","OtherForeign42Member"]
[123,"Other foreign 43 [Member]","OtherForeign43Member"]
[124,"Other foreign 44 [Member]","OtherForeign44Member"]
[125,"Other foreign 45 [Member]","OtherForeign45Member"]
[126,"Other foreign 46 [Member]","OtherForeign46Member"]
[127,"Other foreign 47 [Member]","OtherForeign47Member"]
[128,"Other foreign 48 [Member]","OtherForeign48Member"]
[129,"Other foreign 49 [Member]","OtherForeign49Member"]
[130,"Other foreign 50 [Member]","OtherForeign50Member"]
[131,"Total other foreign unit holding","OtherForeignMember"]
[132,"Other institutions 1 [Member]","OtherInstitutions1Member"]
[133,"Other institutions 2 [Member]","OtherInstitutions2Member"]
[134,"Other institutions 3 [Member]","OtherInstitutions3Member"]
[135,"Other institutions 4 [Member]","OtherInstitutions4Member"]
[136,"Other institutions 5 [Member]","OtherInstitutions5Member"]
[137,"Other institutions 6 [Member]","OtherInstitutions6Member"]
[138,"Other institutions 7 [Member]","OtherInstitutions7Member"]
[139,"Other institutions 8 [Member]","OtherInstitutions8Member"]
[140,"Other institutions 9 [Member]","OtherInstitutions9Member"]
[141,"Other institutions 10 [Member]","OtherInstitutions10Member"]
[142,"Other institutions 11 [Member]","OtherInstitutions11Member"]
[143,"Other institutions 12 [Member]","OtherInstitutions12Member"]
[144,"Other institutions 13 [Member]","OtherInstitutions13Member"]
[145,"Other institutions 14 [Member]","OtherInstitutions14Member"]
[146,"Other institutions 15 [Member]","OtherInstitutions15Member"]
[147,"Other institutions 16 [Member]","OtherInstitutions16Member"]
[148,"Other institutions 17 [Member]","OtherInstitutions17Member"]
[149,"Other institutions 18 [Member]","OtherInstitutions18Member"]
[150,"Other institutions 19 [Member]","OtherInstitutions19Member"]
[151,"Other institutions 20 [Member]","OtherInstitutions20Member"]
[152,"Other institutions 21 [Member]","OtherInstitutions21Member"]
[153,"Other institutions 22 [Member]","OtherInstitutions22Member"]
[154,"Other institutions 23 [Member]","OtherInstitutions23Member"]
[155,"Other institutions 24 [Member]","OtherInstitutions24Member"]
[156,"Other institutions 25 [Member]","OtherInstitutions25Member"]
[157,"Other institutions 26 [Member]","OtherInstitutions26Member"]
[158,"Other institutions 27 [Member]","OtherInstitutions27Member"]
[159,"Other institutions 28 [Member]","OtherInstitutions28Member"]
[160,"Other institutions 29 [Member]","OtherInstitutions29Member"]
[161,"Other institutions 30 [Member]","OtherInstitutions30Member"]
[162,"Other institutions 31 [Member]","OtherInstitutions31Member"]
[163,"Other institutions 32 [Member]","OtherInstitutions32Member"]
[164,"Other institutions 33 [Member]","OtherInstitutions33Member"]
[165,"Other institutions 34 [Member]","OtherInstitutions34Member"]
[166,"Other institutions 35 [Member]","OtherInstitutions35Member"]
[167,"Other institutions 36 [Member]","OtherInstitutions36Member"]
[168,"Other institutions 37 [Member]","OtherInstitutions37Member"]
[169,"Other institutions 38 [Member]","OtherInstitutions38Member"]
[170,"Other institutions 39 [Member]","OtherInstitutions39Member"]
[171,"Other institutions 40 [Member]","OtherInstitutions40Member"]
[172,"Other institutions 41 [Member]","OtherInstitutions41Member"]
[173,"Other institutions 42 [Member]","OtherInstitutions42Member"]
[174,"Other institutions 43 [Member]","OtherInstitutions43Member"]
[175,"Other institutions 44 [Member]","OtherInstitutions44Member"]
[176,"Other institutions 45 [Member]","OtherInstitutions45Member"]
[177,"Other institutions 46 [Member]","OtherInstitutions46Member"]
[178,"Other institutions 47 [Member]","OtherInstitutions47Member"]
[179,"Other institutions 48 [Member]","OtherInstitutions48Member"]
[180,"Other institutions 49 [Member]","OtherInstitutions49Member"]
[181,"Other institutions 50 [Member]","OtherInstitutions50Member"]
[182,"Total other institutions unit holding","OtherInstitutionsMember"]
[183,"Other non-institutions 1 [Member]","OtherNonInstitutions1Member"]
[184,"Other non-institutions 2 [Member]","OtherNonInstitutions2Member"]
[185,"Other non-institutions 3 [Member]","OtherNonInstitutions3Member"]
[186,"Other non-institutions 4 [Member]","OtherNonInstitutions4Member"]
[187,"Other non-institutions 5 [Member]","OtherNonInstitutions5Member"]
[188,"Other non-institutions 6 [Member]","OtherNonInstitutions6Member"]
[189,"Other non-institutions 7 [Member]","OtherNonInstitutions7Member"]
[190,"Other non-institutions 8 [Member]","OtherNonInstitutions8Member"]
[191,"Other non-institutions 9 [Member]","OtherNonInstitutions9Member"]
[192,"Other non-institutions 10 [Member]","OtherNonInstitutions10Member"]
[193,"Other non-institutions 11 [Member]","OtherNonInstitutions11Member"]
[194,"Other non-institutions 12 [Member]","OtherNonInstitutions12Member"]
[195,"Other non-institutions 13 [Member]","OtherNonInstitutions13Member"]
[196,"Other non-institutions 14 [Member]","OtherNonInstitutions14Member"]
[197,"Other non-institutions 15 [Member]","OtherNonInstitutions15Member"]
[198,"Other non-institutions 16 [Member]","OtherNonInstitutions16Member"]
[199,"Other non-institutions 17 [Member]","OtherNonInstitutions17Member"]
[200,"Other non-institutions 18 [Member]","OtherNonInstitutions18Member"]
[201,"Other non-institutions 19 [Member]","OtherNonInstitutions19Member"]
[202,"Other non-institutions 20 [Member]","OtherNonInstitutions20Member"]
[203,"Other non-institutions 21 [Member]","OtherNonInstitutions21Member"]
[204,"Other non-institutions 22 [Member]","OtherNonInstitutions22Member"]
[205,"Other non-institutions 23 [Member]","OtherNonInstitutions23Member"]
[206,"Other non-institutions 24 [Member]","OtherNonInstitutions24Member"]
[207,"Other non-institutions 25 [Member]","OtherNonInstitutions25Member"]
[208,"Other non-institutions 26 [Member]","OtherNonInstitutions26Member"]
[209,"Other non-institutions 27 [Member]","OtherNonInstitutions27Member"]
[210,"Other non-institutions 28 [Member]","OtherNonInstitutions28Member"]
[211,"Other non-institutions 29 [Member]","OtherNonInstitutions29Member"]
[212,"Other non-institutions 30 [Member]","OtherNonInstitutions30Member"]
[213,"Other non-institutions 31 [Member]","OtherNonInstitutions31Member"]
[214,"Other non-institutions 32 [Member]","OtherNonInstitutions32Member"]
[215,"Other non-institutions 33 [Member]","OtherNonInstitutions33Member"]
[216,"Other non-institutions 34 [Member]","OtherNonInstitutions34Member"]
[217,"Other non-institutions 35 [Member]","OtherNonInstitutions35Member"]
[218,"Other non-institutions 36 [Member]","OtherNonInstitutions36Member"]
[219,"Other non-institutions 37 [Member]","OtherNonInstitutions37Member"]
[220,"Other non-institutions 38 [Member]","OtherNonInstitutions38Member"]
[221,"Other non-institutions 39 [Member]","OtherNonInstitutions39Member"]
[222,"Other non-institutions 40 [Member]","OtherNonInstitutions40Member"]
[223,"Other non-institutions 41 [Member]","OtherNonInstitutions41Member"]
[224,"Other non-institutions 42 [Member]","OtherNonInstitutions42Member"]
[225,"Other non-institutions 43 [Member]","OtherNonInstitutions43Member"]
[226,"Other non-institutions 44 [Member]","OtherNonInstitutions44Member"]
[227,"Other non-institutions 45 [Member]","OtherNonInstitutions45Member"]
[228,"Other non-institutions 46 [Member]","OtherNonInstitutions46Member"]
[229,"Other non-institutions 47 [Member]","OtherNonInstitutions47Member"]
[230,"Other non-institutions 48 [Member]","OtherNonInstitutions48Member"]
[231,"Other non-institutions 49 [Member]","OtherNonInstitutions49Member"]
[232,"Other non-institutions 50 [Member]","OtherNonInstitutions50Member"]
[233,"Total other non-institutions unit holding","OtherNonInstitutionsMember"]